Cogmind - Beta 15 @@@ ROGUE MODE // 2025.06.05 @ 09:35:08 Player: Darcyisverycute Result: Escaped singularity! Performance ------------- Evolutions (9) 4500 Regions Visited (23) 4600 Robots Destroyed (456) 2280 Value Destroyed (27777) 27777 Prototype IDs (385) 7700 Alien Tech Used (8) 1600 Bonus (53672) 53672 TOTAL SCORE: 102129 Bonus ------- High Alert Combat Kills 4990 Follower Combat Kills 2195 Delivered SUBCON Basin 2000 Registered with UFD 300 Met Optimus in HQ 500 Met Warlord at Base 500 MAIN.C Attacked Warlord 500 Warlord Defense Kills 1122 Built Enhanced Grunts 300 A7 Reached Mainframe 300 Met R17 at Cetus 500 Met R17 at Research 2000 Destroyed MAIN.C Guards 500 Met MAIN.C 5000 Destroyed MAIN.C Shell 5000 Destroyed MAIN.C 10000 Met Architect 300 Destroyed A8 300 Destroyed A6 400 Destroyed A5 500 Destroyed Architect 15000 Win 3000 Friendly Fire -1535 Cogmind --------- Core Integrity 806/1600 Matter 210/300 Energy 99/100 System Corruption 7% Temperature Cool (0) Movement Core (50) Location Near Former Tau Ceti IV Parts ------- > --- POWER (4) -------- (None) > --- PROPULSION (3) --- (None) > --- UTILITY (14) ----- (None) > --- WEAPON (4) ------- (None) > --- INVENTORY (5) ---- Quantum Capacitor Cooled Directed Potential Cannon Peak State ------------ > --- POWER ------------ Particle Reactor Light Particle Reactor Vortex Chain Reactor > --- PROPULSION ------- Wheel Wheel Wheel > --- UTILITY ---------- Advanced Power Amplifier Concept Phasing Heat Sink Concept Thermoelectric Network Concept Antigrav Storage Unit Concept Projectile Intercept Suite Concept Weapon Articulator Quantum Capacitor Concept Cloak Mesh Concept Cloak Mesh SHELL Armor Concept Hardlight Director > --- WEAPON ----------- Concept Plasma Driver Concept XC Strikerail Sigix Broadsword > --- INVENTORY -------- Experimental Power Amplifier Concept Chromion Battery Concept NT7 Matterbank Experimental Kinecellerator Femtoactuators Graphene Brace Thermal Barrier Experimental EM Shield Concept Antimissile System Advanced System Restoration Module Concept Impact Drone Bay Transdimensional Reconstructor High-powered Transdimensional Reconstructor Terrabomb Concept Navigation Harness Concept Disintegration Ray Compact HERF Cannon Enhanced Nova Cannon Cooled Directed Potential Cannon Concept XC Strikerail Concept Helical Railcannon Concept Helical Railcannon [Rating: 266] Favorites ----------- Power Light Antimatter Reactor Engine Subdweller Power Source Power Core Enhanced Fission Core Reactor Light Antimatter Reactor Propulsion Compact Wheel Wheel Compact Wheel Utility Experimental Targeting Computer Device Concept Phasing Heat Sink Storage Concept Antigrav Storage Unit Processor Experimental Targeting Computer Hackware Makeshift Hacking Suite Protection SHELL Armor Weapon Sigix Broadsword Energy Gun Enhanced Quantum Rifle Energy Cannon Nova Cannon Ballistic Gun Concept XC Strikerail Ballistic Cannon Light Antimatter Cannon Launcher Gamma Bomb Array Special Weapon Mining Laser Impact Weapon Core Stripper Slashing Weapon Sigix Broadsword Piercing Weapon Experimental Jetlance Special Melee Weapon Improved Datajack Build | -11 -10 -10 -10 -9 -9 -6 -6 -6 -5 -5 -5 -5 -4 -4 -4 -3 -3 -2 -2 -2 -1 -1 -1 ------- Run | Yrd Mat Min Sub Rec Scr Fac Ext Cet Fac Upp Upp War Pro Fac Arm Res Qua Res Tes Frg Acc Com Ac0 Slots Evolved 18 | . . . . . . 8 . . 2 . . . . 2 . 2 . 2 . . 2 . . Power 3 | . . . . . . . . . 1 . . . . . . 2 . . . . . . . Propulsion 1 | . . . . . . . . . . . . . . . . . . 1 . . . . . Utility 12 | . . . . . . 6 . . 1 . . . . 2 . . . 1 . . 2 . . Weapon 2 | . . . . . . 2 . . . . . . . . . . . . . . . . . Parts Attached 404 | 8 4 1 24 . 6 38 17 14 15 5 4 16 1 18 14 49 30 30 25 42 6 26 11 Power 69 | 1 . . 3 . 1 2 3 2 4 . 1 1 . 1 3 8 10 9 3 6 1 7 3 Engine 11 | 1 . . 3 . 1 2 2 . 1 . . . . . . . . 1 . . . . . Core 11 | . . . . . . . 1 . 3 . 1 . . . 1 1 3 1 . . . . . Reactor 47 | . . . . . . . . 2 . . . 1 . 1 2 7 7 7 3 6 1 7 3 Propulsion 50 | 2 . . 6 . 1 4 3 . 2 . . 4 . 3 . 3 2 6 4 1 2 6 1 Treads . | . . . . . . . . . . . . . . . . . . . . . . . . Leg . | . . . . . . . . . . . . . . . . . . . . . . . . Wheel 50 | 2 . . 6 . 1 4 3 . 2 . . 4 . 3 . 3 2 6 4 1 2 6 1 Hover . | . . . . . . . . . . . . . . . . . . . . . . . . Flight . | . . . . . . . . . . . . . . . . . . . . . . . . Utility 174 | 2 2 . 3 . 2 16 6 2 7 3 2 6 . 10 5 29 12 11 13 26 3 9 5 Device 103 | 1 . . 1 . 1 10 2 1 3 1 . 5 . 8 2 20 8 6 10 13 3 5 3 Storage 14 | 1 2 . . . . . 1 . 1 . . . . 1 . 2 2 . 1 2 . . 1 Processor 26 | . . . . . 1 2 2 . 1 . 2 1 . 1 . 3 1 3 . 6 . 3 . Hackware 8 | . . . . . . 3 . . . . . . . . 3 . . 2 . . . . . Protection 23 | . . . 2 . . 1 1 1 2 2 . . . . . 4 1 . 2 5 . 1 1 Artifact . | . . . . . . . . . . . . . . . . . . . . . . . . Weapon 111 | 3 2 1 12 . 2 16 5 10 2 2 1 5 1 4 6 9 6 4 5 9 . 4 2 Energy Gun 30 | 1 . . 3 . . 4 3 3 1 1 . 2 . 2 2 2 2 . 1 3 . . . Energy Cannon 20 | . . . 2 . 1 2 . 1 . . 1 . . . 1 1 2 2 1 2 . 3 1 Ballistic Gun 27 | 2 . . 4 . . 6 1 5 1 . . 1 1 1 . 3 . . . 2 . . . Ballistic Cannon 17 | . 1 . 1 . 1 1 . . . . . 2 . 1 2 . 2 1 2 1 . 1 1 Launcher 7 | . 1 . 1 . . . . . . 1 . . . . 1 3 . . . . . . . Special Weapon 5 | . . 1 . . . 2 1 1 . . . . . . . . . . . . . . . Impact Weapon 1 | . . . . . . . . . . . . . . . . . . . 1 . . . . Slashing Weapon 2 | . . . 1 . . . . . . . . . . . . . . 1 . . . . . Piercing Weapon 1 | . . . . . . . . . . . . . . . . . . . . 1 . . . Special Melee Weapon 1 | . . . . . . 1 . . . . . . . . . . . . . . . . . Unidentified Prototypes 55 | . . . . . . 2 . 5 1 1 . 6 . . 1 8 4 3 10 14 . . . Corrupted Parts 10 | . . . . . . 3 1 3 . . . 1 1 . . 1 . . . . . . . System Corruption 42 | . . . . . . 6 10 14 . . . 3 4 . . 5 . . . . . . . Parts Lost 141 | . . . 7 . . 23 1 . 2 6 4 1 1 9 2 23 12 13 10 10 . 7 10 Power 28 | . . . 1 . . 2 . . . 1 . . . 1 . 6 7 3 1 2 . 1 3 Propulsion 29 | . . . 2 . . 4 1 . . 1 . 1 . 2 . 3 1 4 2 3 . 2 3 Utility 41 | . . . 2 . . 5 . . 1 2 2 . 1 4 1 6 2 3 3 4 . 3 2 Weapon 43 | . . . 2 . . 12 . . 1 2 2 . . 2 1 8 2 3 4 1 . 1 2 Highest Loss Streak 15 | . . . 3 . . 15 1 . 2 4 4 1 1 7 1 14 3 5 3 5 . 5 6 To Critical Strikes 1 | . . . . . . . . . . . . . . . . . . 1 . . . . . Average Backups 16 | 3 11 19 8 9 17 16 4 8 9 8 8 5 7 6 7 18 21 21 21 21 21 20 21 Power . | . 1 2 . . . . . . . . . . . . . . . . . . . 1 1 Propulsion . | 1 2 3 1 . . . . . . . . . . . . 1 . . . . . 2 . Utility 8 | . 3 6 2 8 13 10 2 4 6 5 5 1 4 3 2 9 12 11 10 12 12 9 13 Weapon 3 | . 4 8 4 . 1 . . 1 1 1 2 2 3 2 4 7 3 2 2 3 5 5 3 Tool/Special . | . . . . . . . . . . . . . . . . . . . . . . . . Unused Backups 76 | . 1 3 17 . 5 11 2 2 2 2 3 2 . . . 2 4 . 2 7 1 5 5 Power 3 | . . . 1 . . . 1 . . . 1 . . . . . . . . . . . . Propulsion 10 | . . . 3 . . . . 1 . . 1 . . . . . . . . 1 1 3 . Utility 45 | . 1 1 6 . 4 9 1 1 2 1 1 2 . . . 1 4 . 2 4 . 2 3 Weapon 13 | . . 2 7 . 1 . . . . 1 . . . . . 1 . . . 1 . . . Tool/Special 5 | . . . . . . 2 . . . . . . . . . . . . . 1 . . 2 Average Slot Usage (%) 84 | . 100 100 87 100 86 72 88 76 89 87 82 65 78 82 90 92 94 93 85 74 77 80 75 Engine 3 | . 14 14 13 14 13 4 4 . . . . 1 . . . . . . . . . . . Reactor 7 | . . . . . . . . 5 5 3 . 1 5 4 9 14 10 13 13 11 16 11 13 Wheel 11 | . 28 28 25 28 16 5 9 6 6 5 4 8 11 8 4 7 8 10 12 8 8 10 10 Device 15 | . 14 14 1 . 1 14 15 6 11 9 9 6 11 25 28 22 18 13 12 13 24 34 23 Storage 5 | . 14 14 5 14 14 5 1 6 5 5 4 5 5 5 5 4 4 4 5 4 4 4 4 Processor 12 | . . . . . 4 15 30 26 23 17 16 18 19 17 21 17 20 23 19 16 8 4 8 Hackware 1 | . . . . . . . . . . . . . . . 1 4 4 4 7 3 . . . Protection 4 | . . . 10 14 7 2 . 6 5 12 11 6 5 2 . 1 2 2 1 4 4 4 4 Energy Gun 3 | . . . 3 14 2 4 14 4 4 6 4 3 5 2 4 7 2 2 . 1 . . . Energy Cannon 3 | . . . 4 . 10 8 . . . . . . . . 2 1 6 2 1 . 4 4 6 Ballistic Gun 5 | . 25 21 11 14 2 5 1 10 17 15 9 . 5 9 2 1 1 . . 1 3 3 . Ballistic Cannon 4 | . 1 . 8 . 11 2 5 . . . . . 5 3 5 2 7 11 2 2 . 1 1 Peak Build Rating 266 | 7 9 9 33 33 34 72 67 92 106 104 92 105 105 120 115 139 153 164 205 235 255 266 265 Average Rating 127 | 5 7 9 14 24 29 57 55 72 101 95 83 64 102 111 108 121 136 148 168 201 244 257 248 On Entrance 96 | . 7 9 9 33 21 34 21 64 92 95 87 82 105 102 103 106 119 137 154 205 226 243 252 Naked Turns 3 | . . . . . . . . . . . . . . . . . . . . . . . 3 Heaviest Build 226 | 15 51 50 61 57 63 79 58 78 92 97 82 128 125 126 108 195 197 210 226 225 192 219 214 Greatest Support 48 | 26 26 26 40 30 30 28 28 28 28 26 16 32 32 32 10 20 32 48 48 42 30 48 48 Greatest Overweight (x) 27 | . 1 1 5 1 5 5 3 2 27 6 5 12 3 8 10 18 16 13 5 17 17 8 6 Average Overweight (x) 3 | . . 1 1 1 2 1 1 1 2 4 4 2 3 3 8 8 6 4 3 7 10 4 4 Largest Inventory Capacity 25 | 8 20 20 20 20 20 20 10 10 10 10 10 10 10 10 10 25 25 25 25 25 25 25 25 Average Capacity 19 | 7 14 20 11 20 20 18 6 10 10 10 9 10 10 10 10 22 25 25 25 25 25 25 24 Most Carried 25 | 6 20 20 20 20 20 20 10 10 10 10 10 10 10 10 10 25 25 25 25 25 25 25 25 Average Carried 18 | 3 11 19 9 16 19 17 5 9 9 9 9 7 10 9 9 20 24 24 24 24 24 24 23 Final Capacity 25 | 8 20 20 20 20 20 5 10 10 10 10 10 10 10 10 10 25 25 25 25 25 25 25 5 Final Carried 25 | 6 20 19 20 20 20 5 10 10 10 10 10 10 10 10 10 22 25 23 25 25 25 24 5 Class Distribution -------------------- 20% | Mutant 18% | Scavenger-Gunner 15% | Generator-Mutant 8% | Scavenger-Mutant 8% | Generator-Tank 7% | Scavenger-Skirmisher 5% | Scavenger-Tank 3% | Scavenger-Gladiator 3% | Generator-Gunner Dominant Class ---------------- Mutant | -10/Materials Mutant | -10/Mines Mutant | -10/Subcaves Scavenger-Mutant | -9/Recycling Mutant | -9/Scraptown Skirmisher | -6/Factory Scavenger-Gunner | -6/Extension Mutant | -6/Cetus Scavenger-Tank | -5/Factory Scavenger-Gunner | -5/Upper Caves Scavenger-Gunner | -5/Upper Caves Scavenger-Mutant | -5/Warlord Scavenger-Gunner | -4/Proximity Caves Scavenger-Gunner | -4/Factory Scavenger-Gunner | -4/Armory Generator-Skirmisher | -3/Research Scavenger-Skirmisher | -3/Quarantine Scavenger-Skirmisher | -2/Research Generator-Assassin | -2/Testing Generator-Mutant | -2/Protoforge Generator-Mutant | -1/Access Generator-Tank | -1/Command Generator-Mutant | -1/Access_0 Resources | -11 -10 -10 -10 -9 -9 -6 -6 -6 -5 -5 -5 -5 -4 -4 -4 -3 -3 -2 -2 -2 -1 -1 -1 ----------- Run | Yrd Mat Min Sub Rec Scr Fac Ext Cet Fac Upp Upp War Pro Fac Arm Res Qua Res Tes Frg Acc Com Ac0 Matter Collected 19613 | 394 182 138 924 46 60 708 1021 476 471 811 363 342 212 980 473 1241 1158 1822 1466 2787 636 1812 1090 Remotely 208 | . . . . . . . . . . . . . . . . . 208 . . . . . . Salvage Created 23680 | 232 318 52 703 176 . 975 960 . 1205 919 347 718 261 1151 515 1899 946 2610 1959 3425 897 2639 773 Parts 977 | 16 22 4 50 4 . 44 38 . 27 40 27 28 16 53 27 80 40 98 77 114 51 104 17 Haulers Intercepted 2 | . . . . . . . . . 2 . . . . . . . . . . . . . . Recyclers Shooed 12 | . 2 . . . . 3 2 . . . . . . . . . . 5 . . . . . Parts Field Recycled . | . . . . . . . . . . . . . . . . . . . . . . . . Retrieved Matter . | . . . . . . . . . . . . . . . . . . . . . . . . Parts Self-Destructed 73 | . . . 12 . . . . . . 36 11 . 14 . . . . . . . . . . Prevented 13 | . . . 3 . . . . . . 3 7 . . . . . . . . . . . . Kills | -11 -10 -10 -10 -9 -9 -6 -6 -6 -5 -5 -5 -5 -4 -4 -4 -3 -3 -2 -2 -2 -1 -1 -1 ------- Run | Yrd Mat Min Sub Rec Scr Fac Ext Cet Fac Upp Upp War Pro Fac Arm Res Qua Res Tes Frg Acc Com Ac0 Combat Hostiles Destroyed 354 | . 10 3 20 . . 13 13 . 6 14 5 8 8 19 11 29 17 34 22 57 10 40 15 Melee 26 | . . . . . . . . . . . . . . . . . . . 7 19 . . . Guns 95 | . 4 3 9 . . 9 3 . 6 14 2 . 3 15 4 7 5 1 1 4 . 5 . Cannons 157 | . 1 . 7 . . 3 10 . . . . . 5 4 7 7 12 30 11 13 10 29 8 AOE 28 | . 5 . 4 . . 1 . . . . 2 3 . . . 10 . . 1 . . . 2 Classes Destroyed 32 | 3 2 . 4 . . 4 4 . 2 2 . 3 . . 1 1 . . 1 3 1 1 . Worker 26 | 1 1 . . . . 2 . . 2 . . . . 2 . 1 1 6 3 1 2 4 . Builder 11 | . . . . . . 1 1 . . . . . . 1 . 2 . . 4 . 2 . . Tunneler 6 | 5 . . . . . . . . . . . . . . . 1 . . . . . . . Hauler 2 | . . . . . . . . . 2 . . . . . . . . . . . . . . Recycler 31 | 1 2 . . 2 . 3 3 . 5 . . . . 1 . 1 1 8 1 . 2 1 . Carrier 1 | . . . . . . . . . . . . . . . . . . . . . . 1 . Mechanic 2 | . . . . . . . 1 . . . . . . . . . . . 1 . . . . Operator 2 | . . . . . . . 1 . . . . . . . . . . . . . . 1 . Drone 3 | . . . . . . . . . . . . . . . . . . . . 2 . . 1 Turret 1 | . . . 1 . . . . . . . . . . . . . . . . . . . . Watcher 15 | . . . . . . . 1 . . . . . . . . 3 1 6 2 . 2 . . Swarmer 78 | . 6 3 4 . . 4 1 . . 1 . 2 5 5 2 15 . 14 . . 4 12 . Saboteur 1 | . . . . . . . . . . . . . . . . 1 . . . . . . . Grunt 71 | . 4 . 2 . . 4 6 . 3 6 . . 3 11 2 5 8 1 3 9 . 4 . Brawler 4 | . . . . . . . . . . 2 . 2 . . . . . . . . . . . Duelist 6 | . . . . . . . . . . 3 . . . . . . . . . 3 . . . Sentry 26 | . . . . . . 3 4 . . 1 . . . 2 1 . . 3 . 8 . 4 . Demolisher 3 | . . . . . . . . . . . . . . . 1 2 . . . . . . . Specialist 2 | . . . . . . . . . 1 . . . . . . . . . 1 . . . . Hunter 29 | . . . . . . 1 . . 2 . 3 2 . 1 . 1 . 1 9 . . 9 . Programmer 60 | . . . . . . 1 1 . . . 1 . . . 5 . . 15 8 18 5 6 . Heavy 1 | . . . . . . . . . . . . . . . . . . . . . 1 . . Behemoth 4 | . . . . . . . 1 . . 1 1 . . . . 1 . . . . . . . Quarantine Guard 9 | . . . . . . . . . . . . . . . . . 9 . . . . . . M Guard 2 | . . . . . . . . . . . . . . . . . . . . . . 2 . Enhanced Grunt 7 | . . . . . . . . . 1 . . . . . . . . . . . . . 6 Enhanced Sentry 1 | . . . . . . . . . . . . . . . . . . . . . . . 1 Enhanced Hunter 4 | . . . . . . . . . . . . . . . . . . . . . . . 4 Hotshot 4 | . . . . . . . . . . . . . . . . . . . . 4 . . . Decapitator 7 | . . . . . . . . . . . . . . . . . . . . 7 . . . Immortal 4 | . . . . . . . . . . . . . . . . . . . . 4 . . . Combat Programmer 2 | . . . . . . . . . . . . . . . . . . . . . . 2 . Striker 4 | . . . . . . . . . . . . 1 . . . 3 . . . . . . . Executioner 2 | . . . . . . . . . . . . 1 . . . 1 . . . . . . . Alpha 7 2 | . . . . . . . . . . . . . . . . . . . . 2 . . . Fortress 1 | . . . . . . . . . . . . . . . . . . . 1 . . . . Artisan 3 | . . . 3 . . . . . . . . . . . . . . . . . . . . Cobbler 1 | . . . 1 . . . . . . . . . . . . . . . . . . . . Subdweller 14 | . . . 14 . . . . . . . . . . . . . . . . . . . . Surgeon 2 | . . . . . . . . . . . . 2 . . . . . . . . . . . Savage 1 | . . . . . . . . . . . . 1 . . . . . . . . . . . Mutant 1 | . . . . . . . . . . . . 1 . . . . . . . . . . . Best Kill Streak 11 | 4 4 3 4 1 . 4 4 . 6 5 3 8 5 5 3 6 5 9 6 5 4 11 3 Combat Bots Only 11 | . 3 3 4 . . 3 4 . 2 5 3 8 5 5 3 6 5 7 5 5 4 11 3 Max Kills in Single Turn 4 | 1 4 1 4 1 . 2 1 . 2 1 1 4 1 1 1 3 1 2 1 1 1 3 1 Gunslinging . | . . . . . . . . . . . . . . . . . . . . . . . . Exploded 4 | . 3 . 4 . . 1 . . . . 1 1 . . . 3 . . 1 . . . 1 Melee 1 | . . . . . . . . . . . . . . . . . . . 1 1 . . . Uniques/NPCs Destroyed 6 | . . . . . . . . . . . . . . . . . . . . . . 2 4 MAIN.C Shell (-1/Command) MAIN.C (-1/Command) A8 (-1/Access_0) A6 (-1/Access_0) A5 (-1/Access_0) Architect (-1/Access_0) Combat | -11 -10 -10 -10 -9 -9 -6 -6 -6 -5 -5 -5 -5 -4 -4 -4 -3 -3 -2 -2 -2 -1 -1 -1 -------- Run | Yrd Mat Min Sub Rec Scr Fac Ext Cet Fac Upp Upp War Pro Fac Arm Res Qua Res Tes Frg Acc Com Ac0 Hostile Shots Fired 2841 | . 22 15 102 . . 263 87 21 53 55 71 8 30 228 38 164 97 169 253 383 35 236 511 Missed 791 | . 11 3 23 . . 83 31 5 12 19 23 2 8 54 16 44 27 46 67 77 7 65 168 Deflected 8 | . . . . . . . . . . . . . . . . . . . . 1 2 5 . Hits 2050 | . 11 12 79 . . 180 56 16 41 36 48 6 22 174 22 120 70 123 186 306 28 171 343 Melee 82 | . . . . . . . . . . 7 . . . . . 4 . . . 66 . . 5 Projectile 1968 | . 11 12 79 . . 180 56 16 41 29 48 6 22 174 22 116 70 123 186 240 28 171 338 AOE 31 | . . . 1 . . . . . . . . . . . 9 13 . . . 1 . 7 . Critical Strikes 153 | . 1 . 2 . . 2 1 3 2 3 3 . . 2 . 2 13 5 11 56 1 8 38 Actively Blocked 28 | . . . . . . . . . . . . . . . . . . . . 26 . 2 . Part Disruptions 17 | . . . . . . . . . . . . . . . . . . 1 2 5 . 6 3 Actively Blocked 1 | . . . . . . . . . . . . . . . . . . . . 1 . . . Damage Taken 34958 | . 117 99 1739 . . 2568 535 414 793 752 1348 191 219 2065 522 3290 1892 2020 2775 5573 539 2111 5396 Core 3625 | . 23 17 202 . . 575 122 71 275 21 103 . 9 138 29 483 259 205 241 243 . 44 565 Absorbed by Shields 10703 | . . . . . . . 217 52 180 . . 17 183 748 . 253 471 670 1073 1402 42 1573 3822 Redirected to Shielding 268 | . . . . . . 106 . . . . . . . . . . . . . 162 . . . Ignored by Resistances 7919 | . . . . . . . . . 121 30 . . . 747 293 802 . 85 86 2070 221 2025 1439 Regen/Repaired (Parts) 8232 | . . . . . . . . . . . . . . . . . . . 1290 3544 396 1179 1823 Core Remaining (%) 49 | 100 . . . . 3 . . 9 . . . . 59 . 85 . 42 . . 44 . . 50 Volleys Fired 1316 | 19 27 16 120 6 . 74 58 10 35 32 24 11 17 63 27 74 77 141 72 72 41 144 156 Largest 4 | 2 2 2 2 2 . 4 4 4 4 4 4 2 3 4 4 4 4 4 1 4 1 4 3 Hottest 480 | 40 50 100 140 90 . 314 274 240 185 223 233 122 154 204 301 250 342 344 240 194 140 204 480 Shots Fired 2479 | 38 49 25 177 9 . 168 132 28 115 122 66 13 34 159 63 171 201 270 73 106 40 215 205 Gun 1223 | 38 42 18 70 9 . 119 74 25 115 118 51 5 22 140 29 118 45 70 8 59 . 48 . Cannon 1201 | . 5 . 101 . . 47 56 2 . . 10 3 12 19 34 32 156 200 65 47 40 167 205 Launcher 42 | . 2 . 5 . . . . . . 4 5 5 . . . 21 . . . . . . . Special 13 | . . 7 1 . . 2 2 1 . . . . . . . . . . . . . . . Kinetic 1345 | 38 47 18 111 3 . 99 61 14 91 87 37 3 29 115 28 53 89 140 43 72 . 95 72 Thermal 972 | . . 7 53 6 . 63 69 11 24 31 24 . . 24 35 97 112 109 14 1 40 119 133 Explosive 2 | . 2 . . . . . . . . . . . . . . . . . . . . . . Electromagnetic 116 | . . . 13 . . 4 . 2 . 4 5 5 . 8 . 21 . 21 16 17 . . . Entropic 39 | . . . . . . . . . . . . 5 5 12 . . . . . 16 . 1 . Robot Hit Streak 58 | 8 7 8 15 5 . 13 13 6 11 13 11 5 15 25 11 32 58 32 14 18 6 36 31 Robot Miss Streak 14 | 2 3 3 3 3 . 8 14 2 5 3 4 1 2 2 1 3 2 2 4 4 2 2 3 Penetration Max 2 | . . . . . . . . 1 1 . . . 1 1 . . 1 . . 1 1 2 1 Secondary Targets 15 | . . . . . . 2 . . 1 3 . . . 6 . 2 . . . 1 . . . Max Gunslinging Chain 1 | . . . . . . 1 . . 1 1 . . . 1 . 1 . . . 1 . . . Capacitor 356 | . . . . . . . . . . . . . . . . . . 38 21 19 40 108 130 Shots Hit Robots 1757 | 26 28 8 90 5 . 91 105 20 55 76 41 4 20 120 35 123 140 189 72 150 28 166 165 Core Hits 860 | 7 19 3 42 2 . 61 93 7 32 30 10 24 9 52 12 97 59 72 44 54 14 63 54 Critical Kills 32 | . . . . . . . . . 5 2 . . . 1 . . . 1 . 7 . 11 5 Critical Parts Destroyed 24 | . . . . . . . . 2 4 6 4 . . . . . 2 . . 1 . 4 1 Critical Strikes 109 | . . . 1 . . . 2 3 9 9 4 . . 2 3 3 8 12 6 16 . 20 11 Burn 3 | . . . . . . . 2 . . . . . . . . 1 . . . . . . . Meltdown 19 | . . . . . . . . . . . . . . . . . . 1 . 6 . 7 5 Destroy 46 | . . . . . . . . 2 9 9 4 . . 2 . . 2 . . 3 . 13 2 Blast 36 | . . . 1 . . . . . . . . . . . 3 2 6 11 5 4 . . 4 Corrupt 1 | . . . . . . . . 1 . . . . . . . . . . . . . . . Sever 4 | . . . . . . . . . . . . . . . . . . . 1 3 . . . Melee Attacks 217 | . . . 1 . . . . . . . . . . . . . . . 52 128 28 8 . Kinetic 34 | . . . . . . . . . . . . . . . . . . . 1 33 . . . Impact . | . . . . . . . . . . . . . . . . . . . . . . . . Slashing 183 | . . . 1 . . . . . . . . . . . . . . . 51 95 28 8 . Piercing . | . . . . . . . . . . . . . . . . . . . . . . . . Sneak Attacks 16 | . . . 1 . . . . . . . . . . . . . . . 6 2 6 1 . Combat Hostiles 1 | . . . . . . . . . . . . . . . . . . . 1 . . . . Follow-up Attacks 1 | . . . . . . . . . . . . . . . . . . . . 1 . . . Damage Inflicted 95133 | 345 585 110 1959 110 . 2513 2861 508 2314 2326 1539 1757 1052 3712 1540 5717 5393 7555 5627 9609 4015 14336 19650 Guns 22276 | 345 311 110 691 110 . 1611 1367 448 1837 2162 933 165 447 2804 675 2609 848 1219 190 1389 . 2005 . Cannons 53412 | . 50 . 884 . . 498 1494 60 . . 296 184 605 908 865 653 4545 6336 3153 2903 2451 11515 16012 Explosions 10585 | . 224 . 318 . . 386 . . 477 164 310 1408 . . . 2455 . . 96 . 543 566 3638 Melee 8842 | . . . 66 . . . . . . . . . . . . . . . 2188 5317 1021 250 . Ramming 18 | . . . . . . 18 . . . . . . . . . . . . . . . . . Kinetic 38869 | 345 361 110 1170 25 . 1131 1524 350 1396 1554 733 184 865 2666 779 1163 2734 4601 2702 4564 . 5432 4480 Thermal 40950 | . . . 546 85 . 1240 1337 125 441 608 496 510 . 392 761 2508 2659 2202 286 . 2994 8590 15170 Explosive 793 | . 224 . . . . . . . 477 . . . . . . 92 . . . . . . . Electromagnetic 5154 | . . . 177 . . 124 . 33 . 164 310 898 . 87 . 1954 . 752 451 204 . . . Impact . | . . . . . . . . . . . . . . . . . . . . . . . . Slashing 7931 | . . . 66 . . . . . . . . . . . . . . . 2188 4406 1021 250 . Piercing . | . . . . . . . . . . . . . . . . . . . . . . . . Entropic 1418 | . . . . . . . . . . . . 165 187 567 . . . . . 435 . 64 . Highest Corruption 33 | . . . . . . 9 19 33 . . 7 7 7 . 1 6 . 8 6 28 5 7 7 Average Corruption 9 | . . . . . . 7 14 22 . . 5 5 3 . 1 1 . 5 5 17 1 2 5 Corruption Purged 29 | . . . . . . . . . . . . . . . . 7 . 8 2 . 5 7 . Corruption Blocked . | . . . . . . . . . . . . . . . . . . . . . . . . Effects 334 | . . . . . . 30 51 25 . . 13 3 4 . . 13 . 27 26 124 6 11 1 Message Errors 66 | . . . . . . 4 16 4 . . 2 1 . . . 4 . 8 2 23 . 2 . Matter Fused 69 | . . . . . . 4 12 5 . . 6 . 1 . . 3 . 7 6 22 2 1 . Heat Flow Errors 32 | . . . . . . 2 3 5 . . 1 2 . . . . . 2 2 12 . 3 . Energy Discharges 38 | . . . . . . 5 2 3 . . 1 . . . . 2 . . 4 18 . 2 1 Parts Rejected 8 | . . . . . . 3 1 2 . . . . . . . . . . 1 1 . . . Parts Fused 1 | . . . . . . . . . . . . . . . . . . . 1 . . . . Data Loss (minor) 54 | . . . . . . 4 7 1 . . 1 . 1 . . 2 . 7 4 26 1 . . Data Loss (major) 28 | . . . . . . 1 4 1 . . . . 2 . . 2 . . 5 10 1 2 . Misfires 12 | . . . . . . 1 . 1 . . 1 . . . . . . . 1 8 . . . Alerts 7 | . . . . . . 2 1 1 . . . . . . . . . . . 2 1 . . Weapon Failures 19 | . . . . . . 4 5 2 . . 1 . . . . . . 3 . 2 1 1 . Overload Shots 35 | . . . . . . . . 2 . . . . . . . 7 2 10 3 . . . 11 Effects 1 | . . . . . . . . . . . . . . . . . . . . . . . 1 Energy Bleed 1 | . . . . . . . . . . . . . . . . . . . . . . . 1 Overflow Damage 5670 | . 28 . 15 . . 132 . . 39 . 10 8 60 38 97 153 13 599 785 646 530 1078 1439 Projectiles 3958 | . . . 12 . . . . . . . . . 60 38 97 75 13 599 380 248 246 928 1262 Explosions 475 | . 28 . 3 . . 132 . . 39 . 10 8 . . . 78 . . . . . . 177 Melee 1237 | . . . . . . . . . . . . . . . . . . . 405 398 284 150 . Knockbacks 138 | . . . 6 . . 2 17 . . . . . 4 6 3 4 . 34 11 13 . 21 17 Impact . | . . . . . . . . . . . . . . . . . . . . . . . . Kinetic 127 | . . . 6 . . 2 16 . . . . . 3 6 3 4 . 31 10 13 . 19 14 Secondary 11 | . . . . . . . 1 . . . . . 1 . . . . 3 1 . . 2 3 Self-Inflicted Damage 389 | . . . 60 . . 90 . . . 21 42 . . . . 126 . . 50 . . . . Shots 16 | . . . 2 . . 2 . . . 1 3 . . . . 7 . . 1 . . . . Rammed 4 | . . . . . . 3 . . . . . . . . . . . . 1 . . . . Targets Rammed 4 | . . . . . . 3 . . . . . . . . . . . . 1 . . . . Kicked . | . . . . . . . . . . . . . . . . . . . . . . . . Crushed . | . . . . . . . . . . . . . . . . . . . . . . . . Highest Temperature 802 | . 20 60 222 90 . 486 466 433 802 199 93 223 . 126 190 344 463 398 360 199 187 187 203 Average Temperature 104 | . 6 29 53 35 . 119 113 116 234 53 40 108 . 41 82 102 106 103 92 56 102 100 123 Received Heat Transfer 3470 | . 63 . 315 . . 651 135 62 116 261 120 . 10 400 21 319 132 70 168 555 . 59 13 Effects 46 | . . . . . . 1 . . 28 . . . . . . 1 6 5 2 . . . 3 Shutdowns 20 | . . . . . . 1 . . 6 . . . . . . 1 6 4 2 . . . . Energy Bleed 4 | . . . . . . . . . 1 . . . . . . . . 1 . . . . 2 Interference 7 | . . . . . . . . . 6 . . . . . . . . . . . . . 1 Matter Decay 4 | . . . . . . . . . 4 . . . . . . . . . . . . . . Short Circuit 1 | . . . . . . . . . 1 . . . . . . . . . . . . . . Damage (minor) 5 | . . . . . . . . . 5 . . . . . . . . . . . . . . Damage (major) 4 | . . . . . . . . . 4 . . . . . . . . . . . . . . Damage (core) 1 | . . . . . . . . . 1 . . . . . . . . . . . . . . Siege Activations . | . . . . . . . . . . . . . . . . . . . . . . . . Martial Activations . | . . . . . . . . . . . . . . . . . . . . . . . . Shielding Activations . | . . . . . . . . . . . . . . . . . . . . . . . . Robots Disrupted . | . . . . . . . . . . . . . . . . . . . . . . . . Combat Hostiles . | . . . . . . . . . . . . . . . . . . . . . . . . Robots Corrupted 16 | . . . . . . . . . . . 1 5 . . . 5 . 2 1 2 . . . Combat Hostiles 16 | . . . . . . . . . . . 1 5 . . . 5 . 2 1 2 . . . Parts Fried 42 | . . . . . . . 1 . . . 2 4 . . . 19 . 7 3 5 . . 1 Impact Corruptions 6 | . . . . . . . . . . . . . . . . . . 4 1 . . 1 . Robots Melted 19 | . . . . . . . . . . . . . . . . . . 1 . 6 . 7 5 Combat Hostiles 19 | . . . . . . . . . . . . . . . . . . 1 . 6 . 7 5 Parts Melted 46 | . . . . . . 6 2 . 1 . 1 . . . . 6 1 6 . 6 4 10 3 Heat Transferred 28688 | . . . 753 100 . 1756 3050 186 518 740 518 400 . 814 555 3485 2627 2790 211 . 1550 3655 4980 Parts Sabotaged . | . . . . . . . . . . . . . . . . . . . . . . . . Parts Stolen . | . . . . . . . . . . . . . . . . . . . . . . . . Parts Stripped 136 | . . . . . . . . . . . . . . . . . . . 18 118 . . . Power Chain Reactions 11 | . . . 1 . . . . . . . 1 3 . . . 5 . . 1 . . . . Alert | -11 -10 -10 -10 -9 -9 -6 -6 -6 -5 -5 -5 -5 -4 -4 -4 -3 -3 -2 -2 -2 -1 -1 -1 ------- Run | Yrd Mat Min Sub Rec Scr Fac Ext Cet Fac Upp Upp War Pro Fac Arm Res Qua Res Tes Frg Acc Com Ac0 Maximum Alert Level 5 | . 1 . . . . 1 2 1 3 . . . . 1 . 2 1 3 2 4 4 5 . Low Security (%) 35 | 100 99 100 . 100 . 95 56 . 4 . . . . 92 100 64 48 41 . . . . . Level 1 20 | . . . . . . 4 39 100 27 . . . . 7 . 34 51 18 47 23 . . . Level 2 9 | . . . . . . . 4 . 28 . . . . . . . . 29 52 16 15 . . Level 3 13 | . . . . . . . . . 39 . . . . . . . . 10 . 36 79 13 . Level 4 4 | . . . . . . . . . . . . . . . . . . . . 23 5 6 . Level 5 15 | . . . . . . . . . . . . . . . . . . . . . . 79 . High Security . | . . . . . . . . . . . . . . . . . . . . . . . . Max Security . | . . . . . . . . . . . . . . . . . . . . . . . . Peak Influence 1250 | 15 197 100 . 70 . 247 434 390 1044 . . . . 218 132 401 246 754 674 1250 1118 1139 . Initial 747 | . . 73 . 18 . . 117 219 181 . . . . 6 88 55 202 119 420 360 747 633 . Average 373 | 2 91 32 . 13 . 56 180 301 608 . . . . 132 45 151 199 333 460 767 890 920 . Influence Increases 14566 | 35 353 104 225 84 . 772 882 311 1165 342 120 175 180 554 387 1043 742 1298 891 1682 757 1495 969 Destroy 0b10 Robot/C 7260 | . 200 60 140 . . 260 500 160 380 280 100 160 160 380 220 580 340 680 440 1100 200 920 . Destroy 0b10 Robot/NC 525 | 35 15 . . 10 . 30 40 10 70 . . . . 20 . 40 15 100 55 15 40 30 . Destroy Leader 1246 | . 40 10 10 . . 80 84 . 54 30 20 . 20 60 50 86 102 172 84 150 44 150 . Allied During Kill 641 | . . . . . . . 141 119 328 2 . . . . . . . . . . . 51 . Successful Hack 375 | . 33 . . 12 . 71 71 . . . . . . . 14 40 79 25 18 12 . . . Select Force Hacks 60 | . . . . 60 . . . . . . . . . . . . . . . . . . . Disable Machine 1020 | . . . . . . 90 15 15 195 . . . . . 75 15 150 45 60 120 75 90 75 Anti-Garrison Action 450 | . . . . . . . . . . . . . . . . 150 . . . 150 150 . . Destroy Structure 2209 | . 20 4 . 2 . 61 16 7 138 . . . . 94 28 132 56 141 159 30 218 209 894 Lose Combat Pursuer 780 | . 45 30 75 . . 180 15 . . 30 . 15 . . . . . 135 75 105 30 45 . Influence Decreases 13737 | 35 164 263 216 123 . 531 731 379 481 914 480 133 288 384 460 790 890 763 996 1078 1013 785 1840 Entered New Map 4809 | . . 116 16 21 . . 124 173 143 374 84 76 118 4 92 52 158 93 327 282 499 357 1700 Time Decay 7155 | 35 164 147 140 102 . 319 416 206 238 440 356 47 160 290 348 508 612 540 559 696 514 318 . Lost Part 1382 | . . . 60 . . 212 10 . 20 60 40 10 10 90 20 230 120 130 100 100 . 70 100 Lost Ally 270 | . . . . . . . 60 . 80 40 . . . . . . . . 10 . . 40 40 Purge Threat 121 | . . . . . . . 121 . . . . . . . . . . . . . . . . Squads Dispatched 79 | . 2 . . . . 10 4 . 7 . . . . 3 2 6 1 11 9 10 9 5 . Investigation 20 | . 1 . . . . 5 3 . 1 . . . . 1 . 4 . 2 1 2 . . . Extermination 25 | . . . . . . 2 . . . . . . . 1 2 . 1 4 4 5 3 3 . Reinforcement 14 | . 1 . . . . . 1 . 4 . . . . 1 . 2 . 1 3 . 1 . . Assault 14 | . . . . . . . . . 2 . . . . . . . . 1 1 3 5 2 . Garrison 6 | . . . . . . 3 . . . . . . . . . . . 3 . . . . . Intercept . | . . . . . . . . . . . . . . . . . . . . . . . . Searches Triggered . | . . . . . . . . . . . . . . . . . . . . . . . . Construction Impeded 3 | . . . . . . . . . 2 . . . . 1 . . . . . . . . . Haulers Reinforced 2 | . . . . . . . . . 1 . . . . . . . . 1 . . . . . Active Scanning Responses . | . . . . . . . . . . . . . . . . . . . . . . . . Cargo Convoy Interrupts . | . . . . . . . . . . . . . . . . . . . . . . . . Stealth | -11 -10 -10 -10 -9 -9 -6 -6 -6 -5 -5 -5 -5 -4 -4 -4 -3 -3 -2 -2 -2 -1 -1 -1 --------- Run | Yrd Mat Min Sub Rec Scr Fac Ext Cet Fac Upp Upp War Pro Fac Arm Res Qua Res Tes Frg Acc Com Ac0 Distress Signals 47 | . 4 . . . . 2 1 2 1 . . . . 2 . 3 1 5 . . 2 24 . Communications Jammed 72 | . . . . . . 1 . . . . . . . . . . . . 71 . . . . Distress Signals 72 | . . . . . . 1 . . . . . . . . . . . . 71 . . . . Times Spotted 580 | . 15 5 27 . . 30 29 9 18 14 5 20 8 27 18 47 24 61 37 66 15 59 46 Peak Tracking Total 14 | . 4 3 4 . . 9 5 5 6 7 3 13 5 8 5 6 6 8 5 7 5 14 6 Tactical Retreats 29 | . 1 1 2 . . 5 1 . . 1 . 1 . . . . . 5 3 3 2 4 . Traps | -11 -10 -10 -10 -9 -9 -6 -6 -6 -5 -5 -5 -5 -4 -4 -4 -3 -3 -2 -2 -2 -1 -1 -1 ------- Run | Yrd Mat Min Sub Rec Scr Fac Ext Cet Fac Upp Upp War Pro Fac Arm Res Qua Res Tes Frg Acc Com Ac0 Traps Triggered 26 | . 1 . 1 . . . 3 . . . . . . . 1 3 . 1 2 7 . 7 . Indirectly 2 | . . . . . . . . . . . . . . . . 2 . . . . . . . Trap Hack Attempts . | . . . . . . . . . . . . . . . . . . . . . . . . Triggered . | . . . . . . . . . . . . . . . . . . . . . . . . Disarmed . | . . . . . . . . . . . . . . . . . . . . . . . . Reprogrammed . | . . . . . . . . . . . . . . . . . . . . . . . . Reused . | . . . . . . . . . . . . . . . . . . . . . . . . Traps Extracted . | . . . . . . . . . . . . . . . . . . . . . . . . Installed 4 | . . 4 . . . . . . . . . . . . . . . . . . . . . Triggered . | . . . . . . . . . . . . . . . . . . . . . . . . Most Traps Carried 3 | . . . 1 . 3 3 . . . . . . . . . . . . . . . . . Objects Rigged 3 | . . . . . . 3 . . . . . . . . . . . . . . . . . Exploded 2 | . . . . . . 2 . . . . . . . . . . . . . . . . . Machines | -11 -10 -10 -10 -9 -9 -6 -6 -6 -5 -5 -5 -5 -4 -4 -4 -3 -3 -2 -2 -2 -1 -1 -1 ---------- Run | Yrd Mat Min Sub Rec Scr Fac Ext Cet Fac Upp Upp War Pro Fac Arm Res Qua Res Tes Frg Acc Com Ac0 Machines Disabled 80 | . . . 4 . . 6 1 1 13 . . 1 . . 5 3 10 3 4 12 6 6 5 Max in Single Turn 3 | . . . 3 . . 1 1 1 3 . . 1 . . 1 1 1 1 1 1 1 1 1 Garrison Access 6 | . . . . . . . . . . . . . . . . 2 . 1 1 1 1 . . Machines Repaired . | . . . . . . . . . . . . . . . . . . . . . . . . Machines Dismantled . | . . . . . . . . . . . . . . . . . . . . . . . . Machines Sabotaged . | . . . . . . . . . . . . . . . . . . . . . . . . Overloaded Fab Kills . | . . . . . . . . . . . . . . . . . . . . . . . . Hacking | -11 -10 -10 -10 -9 -9 -6 -6 -6 -5 -5 -5 -5 -4 -4 -4 -3 -3 -2 -2 -2 -1 -1 -1 --------- Run | Yrd Mat Min Sub Rec Scr Fac Ext Cet Fac Upp Upp War Pro Fac Arm Res Qua Res Tes Frg Acc Com Ac0 Machines Accessed 85 | . 6 . 4 5 2 10 19 1 . . . 4 . 1 3 5 8 5 6 3 2 1 . Terminals 55 | . 5 . . 3 . 5 16 1 . . . . . . 2 3 8 3 5 2 1 1 . Fabricators 2 | . . . . . . 1 . . . . . . . . 1 . . . . . . . . Repair Stations 1 | . . . . . . . 1 . . . . . . . . . . . . . . . . Recycling Units 11 | . 1 . . 2 . 4 2 . . . . . . 1 . . . 1 . . . . . Scanalyzers . | . . . . . . . . . . . . . . . . . . . . . . . . Garrison Access 6 | . . . . . . . . . . . . . . . . 2 . 1 1 1 1 . . Total Hacks 189 | . 18 . 7 10 8 26 36 1 . . . 7 . 1 11 11 19 12 11 6 4 1 . Successful 106 | . 11 . 7 5 8 18 17 . . . . 7 . 1 5 5 9 4 6 2 . 1 . Failed 83 | . 7 . . 5 . 8 19 1 . . . . . . 6 6 10 8 5 4 4 . . Catastrophic 16 | . . . . 1 . 1 8 . . . . . . . . 2 1 2 . . 1 . . Database Lockouts . | . . . . . . . . . . . . . . . . . . . . . . . . Manual 101 | . 17 . . 9 . 20 18 1 . . . . . 1 4 5 13 7 4 2 . . . Terminals 126 | . 15 . . 8 . 14 32 1 . . . . . . 5 7 19 8 10 3 3 1 . Fabricators 13 | . . . . . . 7 . . . . . . . . 6 . . . . . . . . Repair Stations 2 | . . . . . . . 2 . . . . . . . . . . . . . . . . Recycling Units 16 | . 3 . . 2 . 5 2 . . . . . . 1 . . . 3 . . . . . Scanalyzers . | . . . . . . . . . . . . . . . . . . . . . . . . Garrison Access 10 | . . . . . . . . . . . . . . . . 4 . 1 1 3 1 . . Terminal Hacks 42 | . 2 . 7 . 8 1 6 . . . . 7 . . . 2 2 2 3 1 . 1 . Record 11 | . 1 . 4 . . . . . . . . 6 . . . . . . . . . . . Part Schematic 1 | . . . . . . 1 . . . . . . . . . . . . . . . . . Robot Analysis 9 | . 1 . . . 7 . . . . . . . . . . . . 1 . . . . . Open Door 8 | . . . 1 . . . 5 . . . . 1 . . . . . . 1 . . . . Branch Access Points 1 | . . . . . . . . . . . . . . . . 1 . . . . . . . Emergency Access Points 1 | . . . . . . . . . . . . . . . . . 1 . . . . . . Terminal Index 2 | . . . . . . . . . . . . . . . . 1 . . 1 . . . . Alert Level 1 | . . . . . . . . . . . . . . . . . . . . . . 1 . Unreport Threat 1 | . . . . . . . 1 . . . . . . . . . . . . . . . . Locate Traps 1 | . . . . . . . . . . . . . . . . . . 1 . . . . . Zone Layout 1 | . . . . . . . . . . . . . . . . . 1 . . . . . . Proto ID Catalog 3 | . . . 1 . 1 . . . . . . . . . . . . . . 1 . . . Protovariant Controls 1 | . . . . . . . . . . . . . . . . . . . 1 . . . . Release Object 1 | . . . 1 . . . . . . . . . . . . . . . . . . . . Fabricator Hacks 10 | . . . . . . 6 . . . . . . . . 4 . . . . . . . . Load Schematic 5 | . . . . . . 3 . . . . . . . . 2 . . . . . . . . Build 5 | . . . . . . 3 . . . . . . . . 2 . . . . . . . . Repair Station Hacks . | . . . . . . . . . . . . . . . . . . . . . . . . Recycling Unit Hacks . | . . . . . . . . . . . . . . . . . . . . . . . . Scanalyzer . | . . . . . . . . . . . . . . . . . . . . . . . . Garrison Access Hacks 3 | . . . . . . . . . . . . . . . . 1 . 1 1 . . . . Seal Access 3 | . . . . . . . . . . . . . . . . 1 . 1 1 . . . . Unauthorized Hacks 51 | . 9 . . 5 . 11 11 . . . . . . 1 1 2 7 1 2 1 . . . Terminals 38 | . 7 . . 3 . 5 9 . . . . . . . 1 2 7 1 2 1 . . . Assimilate 1 | . . . . . . . . . . . . . . . . . . 1 . . . . . Botnet 17 | . 2 . . 1 . 3 4 . . . . . . . 1 1 2 . 2 1 . . . Skim 20 | . 5 . . 2 . 2 5 . . . . . . . . 1 5 . . . . . . Fabricators 1 | . . . . . . 1 . . . . . . . . . . . . . . . . . Prioritize 1 | . . . . . . 1 . . . . . . . . . . . . . . . . . Repair Stations . | . . . . . . . . . . . . . . . . . . . . . . . . Recycling Units 12 | . 2 . . 2 . 5 2 . . . . . . 1 . . . . . . . . . Reject 1 | . 1 . . . . . . . . . . . . . . . . . . . . . . Mask 2 | . 1 . . . . 1 . . . . . . . . . . . . . . . . . Tunnel 2 | . . . . 2 . . . . . . . . . . . . . . . . . . . Fedlink 7 | . . . . . . 4 2 . . . . . . 1 . . . . . . . . . Scanalyzers . | . . . . . . . . . . . . . . . . . . . . . . . . Garrison Access . | . . . . . . . . . . . . . . . . . . . . . . . . Data Cores Recovered . | . . . . . . . . . . . . . . . . . . . . . . . . Used . | . . . . . . . . . . . . . . . . . . . . . . . . Hacking Detections 56 | . 6 . . 3 . 6 11 1 . . . . . . 3 5 7 4 4 3 2 1 . Full Trace Events 7 | . . . . . . 1 1 . . . . . . . . 1 . 2 1 1 . . . Feedback Events 3 | . . . . . . 1 . . . . . . . . . . . 1 . 1 . . . Corruption 3 | . . . . . . 1 . . . . . . . . . . . 1 . 1 . . . Feedback Blocked . | . . . . . . . . . . . . . . . . . . . . . . . . Robot Schematics Acquired . | . . . . . . . . . . . . . . . . . . . . . . . . Robots Built . | . . . . . . . . . . . . . . . . . . . . . . . . Authchips . | . . . . . . . . . . . . . . . . . . . . . . . . Time . | . . . . . . . . . . . . . . . . . . . . . . . . Total Robot Build Rating . | . . . . . . . . . . . . . . . . . . . . . . . . Part Schematics Acquired 27 | . . . . . 6 10 8 1 2 . . . . . . . . . . . . . . Parts Built 5 | . . . . . . 3 . . . . . . . . 2 . . . . . . . . Authchips 5 | . . . . . . 3 . . . . . . . . 2 . . . . . . . . Time 190 | . . . . . . 90 . . . . . . . . 100 . . . . . . . . Total Part Build Rating 27 | . . . . . . 16 . . . . . . . . 11 . . . . . . . . Parts Repaired . | . . . . . . . . . . . . . . . . . . . . . . . . Time . | . . . . . . . . . . . . . . . . . . . . . . . . Parts Recycled . | . . . . . . . . . . . . . . . . . . . . . . . . Recycled Matter . | . . . . . . . . . . . . . . . . . . . . . . . . Retrieved Matter . | . . . . . . . . . . . . . . . . . . . . . . . . Retrieved Components . | . . . . . . . . . . . . . . . . . . . . . . . . Parts Scanalyzed . | . . . . . . . . . . . . . . . . . . . . . . . . Part Schematics Acquired . | . . . . . . . . . . . . . . . . . . . . . . . . Parts Damaged . | . . . . . . . . . . . . . . . . . . . . . . . . Bothacking | -11 -10 -10 -10 -9 -9 -6 -6 -6 -5 -5 -5 -5 -4 -4 -4 -3 -3 -2 -2 -2 -1 -1 -1 ------------ Run | Yrd Mat Min Sub Rec Scr Fac Ext Cet Fac Upp Upp War Pro Fac Arm Res Qua Res Tes Frg Acc Com Ac0 Used RIF Installer . | . . . . . . . . . . . . . . . . . . . . . . . . Robots Hacked . | . . . . . . . . . . . . . . . . . . . . . . . . Non-combat . | . . . . . . . . . . . . . . . . . . . . . . . . Combat . | . . . . . . . . . . . . . . . . . . . . . . . . Robot Hacks Applied . | . . . . . . . . . . . . . . . . . . . . . . . . Relay Couplers Released 6 | . . . . . . . . . . . . . . . . 1 . . . 3 2 . . Machine Destruction 3 | . . . . . . . . . . . . . . . . 1 . . . . 2 . . Programmers 3 | . . . . . . . . . . . . . . . . . . . . 3 . . . Fabnet Peak Effective % . | . . . . . . . . . . . . . . . . . . . . . . . . Robots Rewired 2 | . . . . . . . . . . 2 . . . . . . . . . . . . . Allies Hacked . | . . . . . . . . . . . . . . . . . . . . . . . . Hacks Repelled . | . . . . . . . . . . . . . . . . . . . . . . . . Allies | -11 -10 -10 -10 -9 -9 -6 -6 -6 -5 -5 -5 -5 -4 -4 -4 -3 -3 -2 -2 -2 -1 -1 -1 -------- Run | Yrd Mat Min Sub Rec Scr Fac Ext Cet Fac Upp Upp War Pro Fac Arm Res Qua Res Tes Frg Acc Com Ac0 Total Allies 15 | . . . . . . . 7 5 . 2 . . . . . . . 1 . . . . . Largest Group 9 | . . . . . . . 4 9 8 2 . . . . . . . 1 1 . . . . Highest-Rated Group 742 | . . . . . . . 262 742 636 59 . . . . . . . 45 45 . . . . Highest-Rated Ally 159 | . . . . . . . 159 153 153 30 . . . . . . . 45 45 . . . . Total Orders 14 | . . . . . . . . . . . . . . . . . . . . . . 6 8 RETURN 14 | . . . . . . . . . . . . . . . . . . . . . . 6 8 Ally Attacks 328 | . . . . . . . 72 51 38 9 . . . . . . . . . . . 89 69 Total Damage 15225 | . . . . . . . 1965 1226 2682 241 . . . . . . . . . . . 5391 3720 Kills 56 | . . . . . . . 13 11 20 . . . . . . . . . . . . 5 7 Allies Corrupted 3 | . . . . . . . . . 1 . . . . . . . . . . . . 1 1 Allies Melted 1 | . . . . . . . . . 1 . . . . . . . . . . . . . . Intel | -11 -10 -10 -10 -9 -9 -6 -6 -6 -5 -5 -5 -5 -4 -4 -4 -3 -3 -2 -2 -2 -1 -1 -1 ------- Run | Yrd Mat Min Sub Rec Scr Fac Ext Cet Fac Upp Upp War Pro Fac Arm Res Qua Res Tes Frg Acc Com Ac0 Active Infowar (turns) 21989 | 50 401 494 343 . . 1101 1135 433 511 1091 811 869 365 644 982 2154 1685 1607 1365 1534 1401 2104 909 Optics 16431 | . . . . . . 1101 1135 433 389 1091 811 869 365 644 982 2154 1340 1544 894 . . 1770 909 Sensors 5035 | . . . . . . 347 . . . . . . . . 667 1312 1012 1088 609 . . . . IFF 107 | . . . . . . 107 . . . . . . . . . . . . . . . . . Terrain 4570 | . . . . . . . . . . . . . . 505 . 1081 1041 911 810 222 . . . Structural 85 | . . . . . . 85 . . . . . . . . . . . . . . . . . Seismic 1658 | 50 401 494 343 . . 240 . . . . . . . . . . . 130 . . . . . Machine Analysis 3726 | . . . . . . . 1073 433 511 1091 618 . . . . . . . . . . . . Cloaking 2251 | . . . . . . . . . . . . . . 448 . . . . . 68 1401 334 . Jamming 2554 | . . . . . . 78 . . . . . . . . . . . . 1012 1464 . . . Robot Analysis Total 9 | . 1 . . . 7 . . . . . . . . . . . . 1 . . . . . Derelict Logs Recovered 9 | . . 1 1 . 3 . . . . 1 2 . 1 . . . . . . . . . . Drone Launches 38 | . . . . . . . . . . . . . . . . . . . . . . 20 18 Drone Recoveries 32 | . . . . . . . . . . . . . . . . . . . . . . 18 14 Exploration | -11 -10 -10 -10 -9 -9 -6 -6 -6 -5 -5 -5 -5 -4 -4 -4 -3 -3 -2 -2 -2 -1 -1 -1 ------------- Run | Yrd Mat Min Sub Rec Scr Fac Ext Cet Fac Upp Upp War Pro Fac Arm Res Qua Res Tes Frg Acc Com Ac0 Turns Passed 32682 | 156 401 494 3097 559 2858 1142 1135 433 511 1091 811 869 365 644 982 2154 2018 1607 1651 2906 1401 4485 912 Spaces Moved 17074 | 87 304 338 2324 490 2075 640 813 265 227 566 416 628 219 255 398 875 760 702 770 1031 329 2197 365 Core 227 | 1 . . 2 . . 148 49 . 4 . 16 . . . . . . . . . . . 7 Treads . | . . . . . . . . . . . . . . . . . . . . . . . . Legs . | . . . . . . . . . . . . . . . . . . . . . . . . Wheels 16847 | 86 304 338 2322 490 2075 492 764 265 223 566 400 628 219 255 398 875 760 702 770 1031 329 2197 358 Hover . | . . . . . . . . . . . . . . . . . . . . . . . . Flight . | . . . . . . . . . . . . . . . . . . . . . . . . Fastest Speed 50 | 50 90 105 80 107 107 50 50 115 120 135 50 95 145 135 185 125 160 138 145 123 155 145 50 Average Speed 148 | 90 97 105 110 107 133 113 100 123 155 165 165 123 145 152 208 202 191 159 149 204 230 164 159 Slowest Speed 1400 | 100 105 105 250 107 155 155 150 130 1400 190 175 260 145 200 230 350 320 295 175 335 335 200 190 Overloaded Moves . | . . . . . . . . . . . . . . . . . . . . . . . . Propulsion Burnouts . | . . . . . . . . . . . . . . . . . . . . . . . . Robots Hopped . | . . . . . . . . . . . . . . . . . . . . . . . . Potential Cave-ins 7 | . . . 4 . . . . . . . 2 . . . . . . . 1 . . . . Cave-ins Triggered 2 | . . . 1 . . . . . . . 1 . . . . . . . . . . . . Teleports 17 | . . . . . . . . . . . . . . . . . . 1 . 1 . 1 14 Exploration Rate (%) 49 | 4 53 88 89 45 83 18 86 79 11 70 55 81 38 10 19 30 76 31 70 27 14 64 39 Regions Visited 23 Branch Regions 16 Pre-discovered Areas 10 | . . . 1 2 1 1 1 . . . 1 1 . . . . 2 . . . . . . Known Exits Taken 9 | . . . . . . 1 1 1 . . . . 1 . . 1 1 1 1 1 . . . Unknown Exits Taken 14 | 1 1 1 1 1 1 . . . 1 1 1 1 . 1 1 . . . . . 1 1 . Scrap Searched 30 | . . 1 14 . 8 . . . . 4 2 . 1 . . . . . . . . . . Spaces Dug 207 | . 8 4 20 . . 18 . . 5 . 5 . 6 11 9 8 16 18 35 8 22 8 6 Terrain Destroyed 1089 | . 18 4 88 2 . 66 . 3 52 42 27 7 18 52 15 86 34 47 55 14 78 89 292 Melee 54 | . . . . . . . . . . . . . . . . . . . 24 8 17 5 . Projectile 606 | . . 4 22 2 . 23 . 3 45 42 19 1 18 52 15 21 34 47 18 6 39 78 117 AOE 429 | . 18 . 66 . . 43 . . 7 . 8 6 . . . 65 . . 13 . 22 6 175 Terrain Rammed . | . . . . . . . . . . . . . . . . . . . . . . . . Walls Destroyed . | . . . . . . . . . . . . . . . . . . . . . . . . Machines Disabled . | . . . . . . . . . . . . . . . . . . . . . . . . Actions | -11 -10 -10 -10 -9 -9 -6 -6 -6 -5 -5 -5 -5 -4 -4 -4 -3 -3 -2 -2 -2 -1 -1 -1 --------- Run | Yrd Mat Min Sub Rec Scr Fac Ext Cet Fac Upp Upp War Pro Fac Arm Res Qua Res Tes Frg Acc Com Ac0 Total 22324 | 122 356 437 2688 515 2173 918 1040 357 306 641 492 714 236 381 499 1114 1168 1008 1108 1539 914 2990 608 Wait 2008 | 3 2 71 64 4 67 119 102 19 8 9 10 2 . 22 37 27 245 67 101 85 488 451 5 Move 17048 | 86 303 337 2322 489 2074 639 812 264 226 565 414 627 218 254 397 874 759 701 769 1030 328 2196 364 Hop . | . . . . . . . . . . . . . . . . . . . . . . . . Pick Up 350 | 5 14 2 54 15 11 9 11 14 7 6 13 12 . 4 5 28 17 10 20 41 8 31 13 Fast Attach 290 | 8 . . 16 . 4 30 13 10 9 5 9 17 . 15 13 26 22 18 17 32 3 15 8 Attach 184 | . . . 10 . 1 16 4 3 3 6 4 3 . 7 1 18 3 15 15 28 5 20 22 Detach 107 | 1 . . 8 . 1 9 3 3 . 2 2 4 . 3 1 13 1 11 7 18 1 10 9 Swap 258 | . 8 4 22 . 2 3 5 9 6 5 2 5 1 4 4 32 24 22 17 40 6 18 19 Drop 399 | . 2 3 55 1 13 13 9 25 12 6 13 33 . 9 14 22 20 15 29 49 6 38 12 Fire 1316 | 19 27 16 120 6 . 74 58 10 35 32 24 11 17 63 27 74 77 141 72 72 41 144 156 Melee 214 | . . . 1 . . . . . . . . . . . . . . . 52 125 28 8 . Ram 4 | . . . . . . 3 . . . . . . . . . . . . 1 . . . . Kick . | . . . . . . . . . . . . . . . . . . . . . . . . Crush . | . . . . . . . . . . . . . . . . . . . . . . . . Escape Stasis 116 | . . . 1 . . . 23 . . . 1 . . . . . . 8 8 19 . 56 . Rewire 8 | . . . . . . . . . . 5 . . . . . . . . . . . 3 . Trap 7 | . . 4 . . . 3 . . . . . . . . . . . . . . . . . Miscellaneous 15 | . . . 15 . . . . . . . . . . . . . . . . . . . . Route ------- -11/Scrapyard -10/Materials (discovered 2 exits: [*Mat] / [*Min]) -10/Mines (discovered 3 exits: [*Mat] / [*Exi] / *Sub) -10/Subcaves (discovered 3 exits: [*Mat x2] / *Rec) -9/Recycling -9/Scraptown -6/Factory (discovered 3 exits: Fac x2 / *Ext) -6/Extension (discovered 3 exits: *Fac x2 / *Cet) -6/Cetus (discovered 2 exits: *Fac / [*Arc]) -5/Factory -5/Upper Caves -5/Upper Caves -5/Warlord -4/Proximity Caves -4/Factory -4/Armory -3/Research (discovered 2 exits: *Qua x2) -3/Quarantine -2/Research (discovered 4 exits: *Acc x3 / *Tes) -2/Testing (discovered 2 exits: [*Sec] / *Frg) -2/Protoforge -1/Access -1/Command (discovered 3 exits: [*Sur x2] / [*Ac0]) -1/Access_0 Near Former Tau Ceti IV History --------- Turn | Location | Event 32 | -11/Scrapyard | Discovered new exit (range 16) 157 | -11/Scrapyard | Entered Materials 231 | -10/Materials | Discovered new exit (range 13) 334 | -10/Materials | Build established: Mutant 345 | -10/Materials | Discovered new exit (range 15) 558 | -10/Materials | Entered Mines 609 | -10/Mines | Deemed a non-threat by the Exiles lab entrance 609 | -10/Mines | Discovered new exit (range 5) 652 | -10/Mines | Assembled infested the area 695 | -10/Mines | Found a hidden stash of uninstalled traps 841 | -10/Mines | Discovered new exit (range 13) 970 | -10/Mines | Learned Materials terminal intel 1047 | -10/Mines | Discovered new exit (range 3) 1052 | -10/Mines | Entered Subcaves 1053 | -10/Subcaves | Shifting Twisted Machinery released Scrap Shield 1053 | -10/Subcaves | Approached by a straggling Scientist 1110 | -10/Subcaves | A swath of the cavern ceiling suddenly collapsed 1431 | -10/Subcaves | Learned Materials emergency access door positions 1880 | -10/Subcaves | Ambushed by angry Subdweller bent on revenge 1996 | -10/Subcaves | Visited Clippyterm 1999 | -10/Subcaves | Learned 40 Factory zone layouts 2072 | -10/Subcaves | Discovered new exit (range 5) 2413 | -10/Subcaves | Learned location of Zion (-6) 2413 | -10/Subcaves | Met a Zionite searching for "candidates" 2700 | -10/Subcaves | Discovered new exit (range 15) 2849 | -10/Subcaves | Ambushed by Subdweller buried in earth 2861 | -10/Subcaves | Ambushed by Subdweller buried in earth 2897 | -10/Subcaves | Lost 3 parts (1n2w) 2991 | -10/Subcaves | Discovered new exit (range 14) 3127 | -10/Subcaves | Shifting Twisted Machinery released Sub. Machine Gun 3146 | -10/Subcaves | Shifting Twisted Machinery released Sub. Machine Gun 3177 | -10/Subcaves | Core integrity fell below 50% 3497 | -10/Subcaves | Visited 4L-MR0's lab 3512 | -10/Subcaves | Found Gun Armor 4047 | -10/Subcaves | Found SUBCON Basin 4142 | -10/Subcaves | Crushed by falling debris 4143 | -10/Subcaves | Core integrity fell below 20% 4149 | -10/Subcaves | Entered Recycling 4332 | -9/Recycling | Scanned before Scraplab entrance 4347 | -9/Recycling | Entered Scraplab 4355 | -9/Recycling | Discovered new exit (range 3) 4415 | -9/Recycling | Build established: Scavenger-Mutant 4708 | -9/Recycling | Entered Scraptown 4841 | -9/Scraptown | Scanned Subdweller tech in exchange for log data 4845 | -9/Scraptown | Learned location of Warlord (-5) 4846 | -9/Scraptown | Learned location of 1 exit from Research 4848 | -9/Scraptown | Learned Factory stockpile data 4928 | -9/Scraptown | Visited Supply Room 4970 | -9/Scraptown | Visited UFD Registry 4970 | -9/Scraptown | Registered with UFD as "Bioboard" 5004 | -9/Scraptown | Visited Shadow of the Wyrm 5038 | -9/Scraptown | Visited Bundlers 5120 | -9/Scraptown | Visited Cyclists 5131 | -9/Scraptown | Entered Cyclist Reading Room 5170 | -9/Scraptown | Heard Great Nut preacher, LISTEN AND RECITE! 5336 | -9/Scraptown | Visited IN-MT5's Study 5545 | -9/Scraptown | Build established: Mutant 5674 | -9/Scraptown | Visited Scrapoid Research Area 5700 | -9/Scraptown | Visited Analyses Database 5734 | -9/Scraptown | Visited Observation Area 5792 | -9/Scraptown | Visited Curators Association 5817 | -9/Scraptown | Visited Derelict Rescue Squad 5831 | -9/Scraptown | Found DRS Beacon 5856 | -9/Scraptown | Visited DA-N13 Charitable Foundation 5867 | -9/Scraptown | Found DCF Scrap (28 items) 5891 | -9/Scraptown | Visited A0-MCA Data Center 5898 | -9/Scraptown | Given a C+ rating by A0-MCA 5901 | -9/Scraptown | Found A0-MCA's Component Scanner 5957 | -9/Scraptown | Visited Science Guys 6438 | -9/Scraptown | Delivered Scrap Shield to a Scientist 6934 | -9/Scraptown | Tech Extrapolator generated special schematic: Machine Rigger 7113 | -9/Scraptown | Tech Extrapolator generated special schematic: Deep Structural Scanner 7349 | -9/Scraptown | Discovered new exit (range 5) 7494 | -9/Scraptown | Met Optimus 7494 | -9/Scraptown | Accepted into 0bPrime 7566 | -9/Scraptown | Entered Factory 7566 | -6/Factory | Evolved 8 slots: Utility x6, Weapon x2 7567 | -6/Factory | Identified exit to Factory 7567 | -6/Factory | Identified exit to Extension 7728 | -6/Factory | Fabricated Mak. Coolant Network (x1) 7775 | -6/Factory | Fabricated Machine Rigger (x1) 7798 | -6/Factory | Fabricated Deep Structural Scanner (x1) 8074 | -6/Factory | Loaded intel: 8 recycling unit locations 8086 | -6/Factory | Build established: Skirmisher 8099 | -6/Factory | Learned location of Protoforge (-2) 8381 | -6/Factory | Garrison activated, responded to threat 8427 | -6/Factory | Lost 5 parts (1p1n3w) 8635 | -6/Factory | Core integrity fell below 50% 8666 | -6/Factory | Lost 15 parts (1p3n4u7w) 8708 | -6/Factory | Entered Extension 8800 | -6/Extension | Rescued A7 8929 | -6/Extension | Loaded intel: 2 recycling unit locations 8962 | -6/Extension | Identified exit to Cetus 9040 | -6/Extension | Learned Factory fabricator intel 9050 | -6/Extension | Learned location of 2 exits from Archives 9055 | -6/Extension | Rescued a captive Derelict 9067 | -6/Extension | Spotted B-75 Beast 9094 | -6/Extension | Learned location of 1 exit from Proximity Caves 9164 | -6/Extension | Destroyed B-75 Beast 9183 | -6/Extension | Disrupted transfer network 9183 | -6/Extension | System corruption reached 10% 9203 | -6/Extension | Build established: Scavenger-Gunner 9295 | -6/Extension | Rescued a captive Derelict 9295 | -6/Extension | Rescued a captive Derelict 9413 | -6/Extension | Spotted B-75 Beast 9436 | -6/Extension | Allies destroyed B-75 Beast 9516 | -6/Extension | Core integrity fell below 20% 9591 | -6/Extension | Rescued a captive Derelict 9778 | -6/Extension | Rescued a captive Derelict 9796 | -6/Extension | Rescued a captive Derelict 9843 | -6/Extension | Entered Cetus 9843 | -6/Cetus | Accompanied by 4 allies (A7) 9848 | -6/Cetus | Acquired a Cetus Manufacturing Module code from A7 9858 | -6/Cetus | Spotted Cetus Guard 9859 | -6/Cetus | Spotted Cetus Guard 9859 | -6/Cetus | Spotted Cetus Guard 9861 | -6/Cetus | Allies destroyed Cetus Guard 9862 | -6/Cetus | Spotted Cetus Guard 9868 | -6/Cetus | Allies destroyed Cetus Guard 9869 | -6/Cetus | Allies destroyed Cetus Guard 9876 | -6/Cetus | Allies destroyed Cetus Guard 9931 | -6/Cetus | Started Cetus Manufacturing Module 9948 | -6/Cetus | Escorted A7 to Cetus Mainframe 9956 | -6/Cetus | Manufactured an Enhanced Grunt 9956 | -6/Cetus | Discovered new exit (range 21) 9981 | -6/Cetus | Manufactured an Enhanced Grunt 10006 | -6/Cetus | Manufactured an Enhanced Grunt 10031 | -6/Cetus | Manufactured an Enhanced Grunt 10056 | -6/Cetus | Manufactured an Enhanced Grunt 10102 | -6/Cetus | Spotted Cetus Guard 10102 | -6/Cetus | Spotted Cetus Guard 10102 | -6/Cetus | Spotted Cetus Guard 10107 | -6/Cetus | Spotted Cetus Guard 10107 | -6/Cetus | Discovered exit to Factory (range 22) 10113 | -6/Cetus | Allies destroyed Cetus Guard 10123 | -6/Cetus | Allies destroyed Cetus Guard 10130 | -6/Cetus | Allies destroyed Cetus Guard 10130 | -6/Cetus | Allies destroyed Cetus Guard 10139 | -6/Cetus | Found Prototype Device 10139 | -6/Cetus | Identified Exp. Thermal Shield 10150 | -6/Cetus | Met Revision 17 10182 | -6/Cetus | System corruption reached 30% 10276 | -6/Cetus | Entered Factory 10276 | -5/Factory | Accompanied by 8 allies (A7) 10276 | -5/Factory | Evolved 2 slots: Power x1, Utility x1 10277 | -5/Factory | Loaded intel: 6 fabricator locations 10281 | -5/Factory | Received a hacking code to weaken MAIN.C 10447 | -5/Factory | Build established: Scavenger-Tank 10576 | -5/Factory | First assault squad dispatched 10710 | -5/Factory | Lost 3 allies 10748 | -5/Factory | Discovered new exit (range 14) 10787 | -5/Factory | Entered Upper Caves 10789 | -5/Upper Caves | UFD Scientist delivered a prototype 10816 | -5/Upper Caves | Found Prototype Protection 10816 | -5/Upper Caves | Identified Enh. Scrap Shield 10825 | -5/Upper Caves | Lost 4 parts (3u1w) 10898 | -5/Upper Caves | Attracted the attention of an 0b10 outpost 11071 | -5/Upper Caves | Learned Factory garrison access intel 11212 | -5/Upper Caves | Spotted B-75 Beast 11239 | -5/Upper Caves | Destroyed B-75 Beast 11444 | -5/Upper Caves | Build established: Scavenger-Gunner 11844 | -5/Upper Caves | Discovered new exit (range 21) 11878 | -5/Upper Caves | Entered another Upper Caves area 12139 | -5/Upper Caves | Ambushed by research squad 12496 | -5/Upper Caves | Crushed by falling debris 12504 | -5/Upper Caves | Spotted B-75 Beast 12546 | -5/Upper Caves | Destroyed B-75 Beast 12554 | -5/Upper Caves | Discovered new exit (range 17) 12573 | -5/Upper Caves | Lost 4 parts (2u2w) 12673 | -5/Upper Caves | Learned Factory security intel 12689 | -5/Upper Caves | Entered Warlord 12742 | -5/Warlord | System corruption cleaned by Quarantine Array 12854 | -5/Warlord | Build established: Scavenger-Mutant 12873 | -5/Warlord | Found Signal Generator 12875 | -5/Warlord | Found Signal Generator 12933 | -5/Warlord | Visited the Vortex Lab 12943 | -5/Warlord | Found Prototype Energy Gun 12943 | -5/Warlord | Identified Vortex Rifle 12946 | -5/Warlord | Found Vortex Rifle 12949 | -5/Warlord | Warlord's base attacked by MAIN.C 13194 | -5/Warlord | Learned location of Quarantine (-3) 13194 | -5/Warlord | Learned Research emergency access door positions 13195 | -5/Warlord | Learned 4 Armory zone layouts 13195 | -5/Warlord | Learned 4 Command zone layouts 13197 | -5/Warlord | Learned Research terminal intel 13272 | -5/Warlord | Rebuked by Warlord 13299 | -5/Warlord | Warlord forces counterattacked 13309 | -5/Warlord | Found Prototype Reactor 13309 | -5/Warlord | Identified Vortex Chain Reactor 13313 | -5/Warlord | Found Prototype Processor 13313 | -5/Warlord | Identified Exp. Targeting Computer 13324 | -5/Warlord | Found Prototype Device 13324 | -5/Warlord | Identified Thermal Barrier 13367 | -5/Warlord | Spotted Striker 13388 | -5/Warlord | Spotted Striker 13389 | -5/Warlord | Spotted Striker 13403 | -5/Warlord | Found Prototype Ballistic Cannon 13403 | -5/Warlord | Identified Hvy. Autocannon 13436 | -5/Warlord | Found Hvy. Autocannon 13449 | -5/Warlord | Lost 12 allies 13450 | -5/Warlord | Spotted Striker 13450 | -5/Warlord | Spotted Executioner 13454 | -5/Warlord | Spotted Executioner 13472 | -5/Warlord | Destroyed Striker 13472 | -5/Warlord | Destroyed Executioner 13495 | -5/Warlord | Destroyed 8 combat bots 13503 | -5/Warlord | Lost 12 allies 13543 | -5/Warlord | Discovered new exit (range 12) 13558 | -5/Warlord | Entered Proximity Caves 13559 | -4/Proximity Caves | Identified exit to Factory 13596 | -4/Proximity Caves | Learned Research emergency access door positions 13661 | -4/Proximity Caves | Build established: Scavenger-Gunner 13923 | -4/Proximity Caves | Entered Factory 13923 | -4/Factory | Evolved 2 slots: Utility x2 13925 | -4/Factory | Loaded intel: 4 garrison access locations 14085 | -4/Factory | Loaded intel: 8 recycling unit locations 14413 | -4/Factory | Discovered new exit (range 11) 14519 | -4/Factory | Lost 7 parts (1p1n3u2w) 14567 | -4/Factory | Entered Armory 14845 | -4/Armory | Fabricated Mak. Sensor Array? 15242 | -4/Armory | Fabricated Mak. Hacking Suite (x1) 15323 | -4/Armory | Found Gamma Bomb Array 15326 | -4/Armory | Found Gamma Bomb Array 15330 | -4/Armory | Found Gamma Bomb Array 15485 | -4/Armory | Discovered new exit (range 10) 15549 | -4/Armory | Entered Research 15549 | -3/Research | Evolved 2 slots: Power x2 15550 | -3/Research | Identified exit to Quarantine 15552 | -3/Research | Loaded intel: 23 terminal locations 15749 | -3/Research | Revision forces began assault on 0b10 15815 | -3/Research | Met up with Revision 17++ 15959 | -3/Research | Found Exp. Thermal Shield 16249 | -3/Research | Research terminal network offline 16409 | -3/Research | Allied Derelicts emerged from ambush trap array 16531 | -3/Research | Spotted Striker 16562 | -3/Research | Lost 4 allies 16576 | -3/Research | Build established: Generator-Skirmisher 16666 | -3/Research | Spotted Striker 16666 | -3/Research | Spotted Executioner 16685 | -3/Research | Destroyed Striker 16965 | -3/Research | Spotted Executioner 16966 | -3/Research | Spotted Striker 16977 | -3/Research | Destroyed Executioner 16978 | -3/Research | Destroyed Striker 17156 | -3/Research | Found Launcher Loader 17304 | -3/Research | Found Exp. Targeting Computer 17373 | -3/Research | Spotted Striker 17405 | -3/Research | Destroyed Striker 17446 | -3/Research | Lost 14 parts (3p1n5u5w) 17586 | -3/Research | Spotted B-90 Cyclops 17634 | -3/Research | Destroyed B-90 Cyclops 17654 | -3/Research | Lost 4 parts (1p3w) 17703 | -3/Research | Entered Quarantine 17732 | -3/Quarantine | Found Alien Impact Weapon 17784 | -3/Quarantine | Found Alien Slashing Weapon 18102 | -3/Quarantine | Found Alien Reactor 18120 | -3/Quarantine | Build established: Scavenger-Skirmisher 18129 | -3/Quarantine | Cryocooling Duct disabled 18144 | -3/Quarantine | Ambient heat levels rising (+20) 18144 | -3/Quarantine | Non-combat units ordered to evacuate 18169 | -3/Quarantine | Found Alien Artifact 18176 | -3/Quarantine | Found Alien Artifact 18179 | -3/Quarantine | Found Alien Artifact 18196 | -3/Quarantine | Found Alien Artifact 18211 | -3/Quarantine | Found Alien Artifact 18240 | -3/Quarantine | Cryocooling Duct disabled 18255 | -3/Quarantine | Ambient heat levels rising (+20) 18255 | -3/Quarantine | Combat units ordered to evacuate 18343 | -3/Quarantine | Discovered new exit (range 22) 18355 | -3/Quarantine | Quarantine Guard activated 18358 | -3/Quarantine | Spotted Quarantine Guard 18358 | -3/Quarantine | Spotted Quarantine Guard 18358 | -3/Quarantine | Spotted Quarantine Guard 18358 | -3/Quarantine | Spotted Quarantine Guard 18446 | -3/Quarantine | Destroyed Quarantine Guard 18547 | -3/Quarantine | Spotted Quarantine Guard 18554 | -3/Quarantine | Cryocooling Duct disabled 18555 | -3/Quarantine | Destroyed Quarantine Guard 18569 | -3/Quarantine | Ambient heat levels rising (+20) 18634 | -3/Quarantine | Found Alien Artifact 18787 | -3/Quarantine | Spotted Quarantine Guard 18865 | -3/Quarantine | Spotted Quarantine Guard 18989 | -3/Quarantine | Destroyed Quarantine Guard 19025 | -3/Quarantine | Spotted Quarantine Guard 19039 | -3/Quarantine | Destroyed Quarantine Guard 19049 | -3/Quarantine | Destroyed Quarantine Guard 19148 | -3/Quarantine | Destroyed Quarantine Guard 19208 | -3/Quarantine | Spotted Quarantine Guard 19230 | -3/Quarantine | Destroyed Quarantine Guard 19233 | -3/Quarantine | Spotted Quarantine Guard 19249 | -3/Quarantine | Destroyed Quarantine Guard 19280 | -3/Quarantine | Lost 3 parts (3p) 19304 | -3/Quarantine | Spotted Quarantine Guard 19310 | -3/Quarantine | Core integrity fell below 50% 19335 | -3/Quarantine | Destroyed Quarantine Guard 19551 | -3/Quarantine | Found Alien Artifact 19569 | -3/Quarantine | Learned Research scanalyzer intel 19640 | -3/Quarantine | Learned Access non-interactive machine intel 19653 | -3/Quarantine | Learned Research repair station intel 19717 | -3/Quarantine | Identified exit to Research 19721 | -3/Quarantine | Entered Research 19721 | -2/Research | Evolved 2 slots: Propulsion x1, Utility x1 19722 | -2/Research | Identified exit to Access 19724 | -2/Research | Loaded intel: 4 repair station locations 19725 | -2/Research | Loaded intel: 6 scanalyzer locations 19784 | -2/Research | Found Prototype Processor 19784 | -2/Research | Identified Spectral Analyzer 19981 | -2/Research | Spotted B-90 Cyclops 20407 | -2/Research | Lost 3 parts (1n1u1w) 20717 | -2/Research | Destroyed 7 combat bots 20721 | -2/Research | First assault squad dispatched 20787 | -2/Research | Found Unknown Device 20787 | -2/Research | Identified Quantum Capacitor 20880 | -2/Research | Garrison activated, responded to threat 20887 | -2/Research | Identified Hpw. Transdimensional Reconstructor (x3) 20887 | -2/Research | Warped through subspace 20912 | -2/Research | Lost 5 parts (3p1n1w) 21218 | -2/Research | Discovered new exit (range 12) 21277 | -2/Research | Identified Sigix Broadsword 21309 | -2/Research | Identified exit to Testing 21328 | -2/Research | Entered Testing 21328 | -2/Testing | Accompanied by 1 ally 21474 | -2/Testing | Found Prototype Device 21474 | -2/Testing | Identified Exp. Hardlight Generator 21823 | -2/Testing | Build established: Generator-Assassin 22082 | -2/Testing | Found Prototype Ballistic Cannon 22082 | -2/Testing | Identified Omega Cannon 22206 | -2/Testing | Spotted PX-2T48NDYCN7 22281 | -2/Testing | Lost 3 parts (1p1n1w) 22414 | -2/Testing | Found Prototype Protection 22414 | -2/Testing | Identified SHELL Armor 22419 | -2/Testing | Found Prototype Protection 22424 | -2/Testing | Found Prototype Protection 22575 | -2/Testing | Build established: Scavenger-Mutant 22578 | -2/Testing | First assault squad dispatched 22692 | -2/Testing | Identified Core Stripper 22731 | -2/Testing | Spotted Fortress 22740 | -2/Testing | Destroyed Fortress 22750 | -2/Testing | Found Vortex Chain Reactor 22754 | -2/Testing | Found Vortex Chain Reactor 22757 | -2/Testing | Found Prototype Device 22757 | -2/Testing | Identified Exp. EM Shield 22786 | -2/Testing | Found Thermal Barrier 22795 | -2/Testing | Found Prototype Protection 22795 | -2/Testing | Identified Centrium Heavy Armor Plating 22805 | -2/Testing | Found Prototype Device 22805 | -2/Testing | Identified Exp. Force Field 22925 | -2/Testing | Discovered new exit (range 6) 22925 | -2/Testing | Discovered new exit (range 6) 22933 | -2/Testing | Identified exit to Protoforge 22979 | -2/Testing | Entered Protoforge 23013 | -2/Protoforge | Spotted Hotshot 23013 | -2/Protoforge | Spotted Hotshot 23033 | -2/Protoforge | Build established: Generator-Mutant 23064 | -2/Protoforge | Destroyed Hotshot 23074 | -2/Protoforge | Spotted Hotshot 23076 | -2/Protoforge | Spotted Hotshot 23083 | -2/Protoforge | Destroyed Hotshot 23090 | -2/Protoforge | Destroyed Hotshot 23195 | -2/Protoforge | Destroyed Hotshot 23295 | -2/Protoforge | Discovered exit to Access (range 16) 23321 | -2/Protoforge | Identified Dimensional Node Initializer 23321 | -2/Protoforge | Initialized slip node 23409 | -2/Protoforge | System corruption reached 10% 23427 | -2/Protoforge | Found Prototype Energy Gun 23427 | -2/Protoforge | Identified Cep. Variable Chargecaster 23574 | -2/Protoforge | Spotted Immortal 23576 | -2/Protoforge | Superfortress began startup sequence 23577 | -2/Protoforge | Spotted Immortal 23608 | -2/Protoforge | Destroyed Immortal 23611 | -2/Protoforge | Destroyed Immortal 23623 | -2/Protoforge | Found Prototype Piercing Weapon 23623 | -2/Protoforge | Identified Exp. Jetlance 23637 | -2/Protoforge | Found Prototype Processor 23637 | -2/Protoforge | Identified Exp. Melee Analysis Suite 23640 | -2/Protoforge | Found Prototype Device 23640 | -2/Protoforge | Identified Cep. Antimissile System 23731 | -2/Protoforge | Found Cep. NT7 Matterbank 23740 | -2/Protoforge | Found Prototype Device 23760 | -2/Protoforge | Spotted Decapitator 23760 | -2/Protoforge | Spotted Decapitator 23760 | -2/Protoforge | Spotted Decapitator 23760 | -2/Protoforge | Spotted Decapitator 23777 | -2/Protoforge | Destroyed Decapitator 23800 | -2/Protoforge | Destroyed Decapitator 23835 | -2/Protoforge | Spotted Immortal 23835 | -2/Protoforge | Spotted Immortal 23894 | -2/Protoforge | Destroyed Immortal 23902 | -2/Protoforge | Destroyed Immortal 23952 | -2/Protoforge | Found Prototype Storage 23952 | -2/Protoforge | Identified Cep. Chromion Battery 23958 | -2/Protoforge | Found Cep. Antigrav Storage Unit 23965 | -2/Protoforge | Identified Hvy. Regenerative Plating 23978 | -2/Protoforge | Found Faulty Cep. Matter Streamer 23981 | -2/Protoforge | Found Cep. Chromion Battery 23988 | -2/Protoforge | Found Faulty Cep. Matter Streamer 23994 | -2/Protoforge | Identified Crosscalibrator 24130 | -2/Protoforge | Identified Transdimensional Reconstructor 24130 | -2/Protoforge | Forge Plexus network access discovered 24248 | -2/Protoforge | Lost 5 parts (2n2u1w) 24276 | -2/Protoforge | Found Cep. Plasma Driver 24279 | -2/Protoforge | Found Faulty Cep. XC Strikerail 24286 | -2/Protoforge | Found Cep. Disintegration Ray 24289 | -2/Protoforge | Found Faulty Cep. XC Strikerail 24292 | -2/Protoforge | Found Cep. Helical Railcannon 24297 | -2/Protoforge | Found Cep. Helical Railcannon 24431 | -2/Protoforge | Identified Matter Drive 24454 | -2/Protoforge | Found Femtoactuators 24458 | -2/Protoforge | Found Exp. Kinecellerator 24465 | -2/Protoforge | Spotted Decapitator 24471 | -2/Protoforge | Found Cep. Weapon Articulator 24472 | -2/Protoforge | Spotted Decapitator 24480 | -2/Protoforge | Destroyed Decapitator 24513 | -2/Protoforge | Destroyed Decapitator 24527 | -2/Protoforge | Lost 3 parts (1p1n1u) 24553 | -2/Protoforge | Spotted V570-z 24553 | -2/Protoforge | Spotted V206-b 24555 | -2/Protoforge | Spotted V532-s 24655 | -2/Protoforge | Spotted Decapitator 24655 | -2/Protoforge | Spotted Decapitator 24655 | -2/Protoforge | Spotted Decapitator 24655 | -2/Protoforge | Spotted Decapitator 24657 | -2/Protoforge | Destroyed Decapitator 24660 | -2/Protoforge | Destroyed Decapitator 24663 | -2/Protoforge | Destroyed Decapitator 24729 | -2/Protoforge | First assault squad dispatched 24914 | -2/Protoforge | Core integrity fell below 50% 24963 | -2/Protoforge | Build established: Scavenger-Gladiator 25056 | -2/Protoforge | Found Cep. RG22 Armor 25060 | -2/Protoforge | Found Cep. Projectile Intercept Suite 25120 | -2/Protoforge | Found Cep. RG22 Armor 25236 | -2/Protoforge | Found Faulty Cep. RG22 Armor 25243 | -2/Protoforge | Found Cep. Hardlight Director 25377 | -2/Protoforge | Additional patrols dispatched to research labs 25423 | -2/Protoforge | Identified Subatomic Replicator 25423 | -2/Protoforge | Used Subatomic Replicator to replicate Cep. Nanofilaments [Tensile] 25425 | -2/Protoforge | Found Cep. Nanofilaments [Tensile] 25425 | -2/Protoforge | Installed Cep. Nanofilaments [Tensile], 3 resistances modified: KI +20%, TH -10%, I +20% 25429 | -2/Protoforge | Installed Cep. Nanofilaments [Tensile], 3 resistances modified: KI +20%, TH -10%, I +20% 25466 | -2/Protoforge | Found Transdimensional Reconstructor 25482 | -2/Protoforge | Found Prototype Device 25645 | -2/Protoforge | Spotted AP7-3 25645 | -2/Protoforge | Spotted AP7-3 25650 | -2/Protoforge | Destroyed AP7-3 25662 | -2/Protoforge | Destroyed AP7-3 25817 | -2/Protoforge | Found Prototype Device 25817 | -2/Protoforge | Identified Cep. Cloak Mesh 25829 | -2/Protoforge | Found Prototype Energy Cannon 25829 | -2/Protoforge | Identified Cld. Directed Potential Cannon 25854 | -2/Protoforge | Found Cep. Impact Drone Bay 25868 | -2/Protoforge | Found Cep. Thermoelectric Network 25877 | -2/Protoforge | Found Cep. Cloak Mesh 25883 | -2/Protoforge | Warped through subspace to slip node 25885 | -2/Protoforge | Entered Access 25885 | -1/Access | Evolved 2 slots: Utility x2 25886 | -1/Access | Loaded intel: 83 non-interactive machine locations 26102 | -1/Access | Build established: Generator-Mutant 26385 | -1/Access | First assault squad dispatched 26490 | -1/Access | Spotted B-99 Colossus 26668 | -1/Access | Spotted B-99 Colossus 26795 | -1/Access | Discovered new exit (range 8) 27286 | -1/Access | Entered Command 27358 | -1/Command | Found Vortex Chain Reactor 27590 | -1/Command | Spotted M Guard 27636 | -1/Command | Spotted Combat Programmer 27637 | -1/Command | Spotted Combat Programmer 27643 | -1/Command | Destroyed Combat Programmer 27655 | -1/Command | Destroyed Combat Programmer 27659 | -1/Command | Spotted M Guard 27661 | -1/Command | Destroyed M Guard 27682 | -1/Command | Destroyed M Guard 27682 | -1/Command | All MAIN.C guards destroyed 27707 | -1/Command | Lost 5 parts (1p1n2u1w) 27716 | -1/Command | Destroyed 8 combat bots 27786 | -1/Command | First assault squad dispatched 27965 | -1/Command | Met MAIN.C 27997 | -1/Command | Allies destroyed MAIN.C Shell 28000 | -1/Command | MAIN.C activated Command garrisons 28000 | -1/Command | 0b10 Conduit disabled 28071 | -1/Command | Destroyed MAIN.C 28092 | -1/Command | Destroyed 11 combat bots 28109 | -1/Command | Identified Terrabomb 28109 | -1/Command | Identified Cep. Navigation Harness 28109 | -1/Command | Discovered new exit (range 33) 28109 | -1/Command | Discovered new exit (range 90) 28109 | -1/Command | Extracted map data and part IDs from MAIN.C's data core 28277 | -1/Command | Build established: Generator-Tank 28960 | -1/Command | Build established: Generator-Mutant 29335 | -1/Command | Found Exp. Focal Shield 29344 | -1/Command | Found Exp. EM Shield 29348 | -1/Command | Found Exp. System Purifier 29351 | -1/Command | Found Exp. EM Shield 29362 | -1/Command | Found Exp. Targeting Computer 29367 | -1/Command | Found Zero-point Reactor 29371 | -1/Command | Found Zero-point Reactor 29871 | -1/Command | Found Exp. Targeting Computer 29894 | -1/Command | Found Exp. Targeting Computer 30311 | -1/Command | Build established: Generator-Tank 31294 | -1/Command | Found Quantum Capacitor 31763 | -1/Command | Warped through subspace to slip node 31763 | -1/Command | Discovered new exit (range 5) 31771 | -1/Command | Entered Access_0 31774 | -1/Access_0 | Met Architect 31781 | -1/Access_0 | Destroyed A8 31790 | -1/Access_0 | Architect warped through subspace 31838 | -1/Access_0 | Architect warped through subspace 31841 | -1/Access_0 | Subspace Access Node disabled 31886 | -1/Access_0 | Architect warped through subspace 31931 | -1/Access_0 | Architect warped through subspace 31982 | -1/Access_0 | Architect warped through subspace 32025 | -1/Access_0 | Found Integrated Dissipator 32025 | -1/Access_0 | Installed Integrated Dissipator, increased core heat dissipation (+20) 32040 | -1/Access_0 | Architect warped through subspace 32089 | -1/Access_0 | Architect warped through subspace 32110 | -1/Access_0 | A6 warped into view 32122 | -1/Access_0 | Destroyed A6 32160 | -1/Access_0 | Architect warped through subspace 32231 | -1/Access_0 | Architect warped through subspace 32242 | -1/Access_0 | Found Hpw. Transdimensional Reconstructor 32290 | -1/Access_0 | Architect warped through subspace 32326 | -1/Access_0 | Subspace Access Node disabled 32382 | -1/Access_0 | Architect warped through subspace 32421 | -1/Access_0 | Architect warped through subspace 32427 | -1/Access_0 | Build established: Generator-Mutant 32443 | -1/Access_0 | Architect warped through subspace 32462 | -1/Access_0 | Architect warped through subspace 32484 | -1/Access_0 | Architect warped through subspace 32535 | -1/Access_0 | Found Exp. Powered Armor 32550 | -1/Access_0 | A5 warped into view 32572 | -1/Access_0 | Subspace Access Node disabled 32573 | -1/Access_0 | Subspace Access Node disabled 32630 | -1/Access_0 | Destroyed A5 32661 | -1/Access_0 | Lost 6 parts (1p1n2u2w) 32675 | -1/Access_0 | Destroyed Architect 32676 | -1/Access_0 | Architect triggered a singularity event 32679 | -1/Access_0 | Warped through subspace to slip node 32679 | -1/Access_0 | Discovered new exit (range 8) 32680 | -1/Access_0 | Released all parts (19) 32683 | *** | Escaped singularity! Last Messages --------------- 32680_ Released Com. Wheel. 32680_ Released Exp. Kinecellerator. 32680_ Exp. Kinecellerator crushed and broken. 32680_ Released Centrium Medium Armor Plating. 32680_ Centrium Medium Armor Plating crushed and broken. 32680_ Released Exp. EM Shield. 32680_ Exp. EM Shield crushed and broken. 32680_ Released Cep. Impact Drone Bay. 32680_ Cep. Impact Drone Bay crushed and broken. 32680_ Released Cep. Helical Railcannon. 32680_ Cep. Helical Railcannon crushed and broken. 32680_ >> Lost connection to Impact Drone. 32681_ A0_COM: 6. 32682_ A0_COM: 5. 32683_ A0_COM: 4. [Achievement: Punisher] [Achievement: Planet Killer] [Achievement: Mad Max] Map ----- +----------------------------------------------------+ | | | | | | | | | | | | | | | | | | | | | | | | | | | | | | | | | ?????????????????????????????????????????????????? | | ?????????????????????????????????????????????????? | | ?????????????????????????????????????????????????? | | ?????????????????????????????????????????????????? | | ?????????????????????????????????????????????????? | | ?????????????????????????????????????????????????? | | ????????????????????????###??????????????????????? | | ???????????????????????## ##?????????????????????? | | ???????????????????????# #?????????????????????? | | ???????????????????????# @ #?????????????????????? | | ??????????????????????## #?????????????????????? | | ??????????????????????# = #?????????????????????? | | ??????????????????????#*]!##?????????????????????? | | ??????????????????????##!!!#?????????????????????? | | ??????????????????????#!!!!#?????????????????????? | | ??????????????????????#*!!##?????????????????????? | | ??????????????????????#]!]!#?????????????????????? | | ??????????????????????#=!*##?????????????????????? | | ??????????????????????##!!#??????????????????????? | | ???????????????????????####??????????????????????? | | ?????????????????????????????????????????????????? | | ?????????????????????????????????????????????????? | | ?????????????????????????????????????????????????? | | ?????????????????????????????????????????????????? | | ?????????????????????????????????????????????????? | | ?????????????????????????????????????????????????? | | ?????????????????????????????????????????????????? | | ?????????????????????????????????????????????????? | | ?????????????????????????????????????????????????? | | ?????????????????????????????????????????????????? | | ?????????????????????????????????????????????????? | | ?????????????????????????????????????????????????? | | ?????????????????????????????????????????????????? | | ?????????????????????????????????????????????????? | +----------------------------------------------------+ Best States ------------- Heat Dissipation 147 Coolant Potential 120 Energy Generation 153 Energy Capacity 2100 Matter Stores 321 Matter Capacity 600 Sight Range 24 Robot Scan Range 19 Terrain Scan Range 20 Terrain Scan Density 210 Jamming Range 14 Cloak Strength 9 Power Amplification 80 Base Temperature (-) 200 EM Shielding 4 Armor Coverage 1525 Resistance: KI 70 Resistance: TH 50 Resistance: EX 50 Resistance: EM 75 Resistance: I 40 Utility Shielding 66 Weapon Shielding 90 Point Defense Rating 480 Weapon Cycling 15 Melee Speed Boost 50 Phase Shifting 15 Evasion (%) 55 Targeting Accuracy 54 Melee Accuracy 16 Target Analysis 6 Core Analysis 6 Matter Filtering 30 Particle Charging 25 Kinecelleration 66 Salvage Targeting 4 Offensive Hacking 33 Authchip Count 12 Trap Extractor Capacity 4 Item Schematics ----------------- Mak. Targeting Computer | -9/Scraptown | Extrapolated Mak. Leg | -9/Scraptown | Extrapolated Machine Rigger | -9/Scraptown | Extrapolated Spk. Treads | -9/Scraptown | Extrapolated Deep Structural Scanner | -9/Scraptown | Extrapolated Mak. Coolant Network | -9/Scraptown | Extrapolated Mak. Utility Shielding | -6/Factory | Extrapolated Mak. Light Armor Plating | -6/Factory | Extrapolated 0b10 Decoder Chip [Generic] | -6/Factory | Extrapolated 0b10 Decoder Chip [Scout] | -6/Factory | Extrapolated 0b10 Decoder Chip [Skirmisher] | -6/Factory | Extrapolated Huge Storage Unit | -6/Factory | Hacked Beamcaster | -6/Factory | Extrapolated Mak. System Shield | -6/Factory | Extrapolated Mak. Power Source | -6/Factory | Extrapolated Spk. Medium Treads | -6/Factory | Extrapolated Multitool | -6/Extension | Extrapolated Mak. Core Shielding | -6/Extension | Extrapolated Mak. Hacking Suite | -6/Extension | Extrapolated Hvy. Beamcaster | -6/Extension | Extrapolated Mak. Salvage Targeting Computer | -6/Extension | Extrapolated Mak. Thermal Plating | -6/Extension | Extrapolated Mak. Hover Unit | -6/Extension | Extrapolated Mak. Laser | -6/Extension | Extrapolated Mak. Sensor Array | -6/Cetus | Extrapolated Tactical Coordination Suite | -5/Factory | Extrapolated Mak. Heavy Armor Plating | -5/Factory | Extrapolated Robot Schematics ------------------ None Fabricated ------------ Mak. Coolant Network | x1 | -6/Factory | Authchip Machine Rigger | x1 | -6/Factory | Authchip Deep Structural Scanner | x1 | -6/Factory | Authchip Mak. Sensor Array | x1 | -4/Armory | Authchip Mak. Hacking Suite | x1 | -4/Armory | Authchip Repaired ---------- Nothing Alien Tech Used ----------------- High-powered Transdimensional Reconstructor Sigix Broadsword Core Stripper Dimensional Node Initializer Matter Drive Subatomic Replicator Concept Nanofilaments [Tensile] Integrated Dissipator Achievements -------------- Mad Max Planet Killer Punisher Challenges ------------ None Game ------ Seed CoolingIonicKatana Manual? 0 Play Time 07:33:34 Cumulative 284.9 hours Start 2025.06.04 @ 22:54:24 End 2025.06.05 @ 09:35:08 Sessions 1 Manual Loads 0 Difficulty Rogue Special Mode None Game No. 151 Rogue 143 Adventurer 8 Explorer 0 Win Type 6 Total 13 Types 7/0/2/2/0/0/1/0/0/1 Lore% 87 Gallery% 86 Achievement% 77 Wizard Run 0 Options --------- Layout 2 ASCII 0 Keyboard 1 Movement Numpad Keybinds 1 Fullscreen 1 Font 48/Smallcaps Map View 50x44 Zoom Use 0% Tactical HUD 1 Map Filters NONE Filters NONE Steam 1 RUN: 3fa8f273-6752-42c3-9778-18fe82a1fa34